{"text_format":"1","workbook":"xlsx","n_sheets":11,"sheets":["初期設定・企業識別子追加","記入例_初期設定・企業識別子追加","ご利用までの流れ","チップ型SIM料金表","カード型SIM料金表","AtMOSInput(ReadOnly)","AtMOSInputUnitPrice(ReadOnly)","リスト","ご提供条件説明","通信機器売買契約条項","Validation"],"not_rendered":{"charts":0,"images":5,"macros":1,"external_links":4,"defined_names":9,"comments":1,"pivot_tables":0},"unopened":[],"bounds":{"document_bytes":16777216,"sheet_cells":100000,"rows_first":2000,"rows_last":500,"rows_between":2000,"halvings":0,"cell_chars":16384,"cell_head_chars":4096},"cells_cut":0,"cells_raw":0,"read":"whole","date_system":"1900"}

{"sheet":"初期設定・企業識別子追加","index":0,"n_rows":93,"n_cols":41,"rows_kept":93,"cut":false,"hidden":false,"merged":[[86,24,86,44],[86,1,86,23],[91,1,91,8],[91,9,91,20],[85,16,85,44],[85,9,85,15],[87,1,87,8],[88,1,88,8],[89,1,89,8],[89,9,89,20],[88,9,88,20],[87,9,87,20],[90,1,90,8],[79,20,79,35],[84,9,84,15],[84,16,84,20],[79,14,79,19],[82,14,82,21],[61,11,61,15],[61,17,61,21],[54,17,54,21],[56,29,56,31],[64,9,64,44],[77,25,77,27],[72,15,72,22],[68,15,68,22],[68,24,68,36],[63,26,63,32],[76,10,76,44],[9,37,9,38],[9,39,9,40],[9,35,9,36],[29,19,29,20],[21,10,21,25],[21,27,21,43],[28,10,28,44],[29,21,29,22],[29,17,29,18],[29,23,29,24],[9,43,9,44],[9,41,9,42],[15,10,15,30],[13,11,13,18],[29,25,29,26],[24,10,24,30],[6,2,6,23],[7,2,7,23],[8,2,8,23],[44,10,44,19],[49,11,49,15],[49,17,49,21],[25,10,25,44],[27,10,27,23],[27,25,27,38],[32,30,32,35],[32,25,32,28],[9,14,9,15],[9,18,9,19],[9,22,9,23],[29,15,29,16],[11,11,11,15],[1,1,1,44],[2,1,2,44],[3,1,3,44],[4,1,4,44],[5,1,5,44],[9,27,9,31],[17,9,22,9],[9,32,9,34],[9,9,9,11],[9,12,9,13],[92,1,92,8],[92,9,92,20],[92,21,92,44],[11,17,11,21],[18,10,18,30],[36,25,36,27],[40,11,40,13],[40,15,40,17],[40,19,40,21],[36,18,36,20],[36,11,36,13],[54,11,54,15],[63,14,63,20],[56,21,56,27],[57,21,57,27],[77,22,77,24]]}
[]
[null,"Master'sONEモバイルスタンダードタイプ申込書 ver2.1"]
[]
[null,"初期設定シート／企業識別子追加シート"]
[]
[]
[null,null,"株式会社NTT PC コミュニケーションズ　御中"]
[null,null,"Master'sONE利用規約を承諾の上、下記の通り申し込みます。"]
[null,null,"＜太枠の中をご記入願います。また該当する個所の□を塗りつぶして下さい。＞"]
[null,null,null,null,null,null,null,null,null,"お申込日",null,null,20,null,null,null,"年",null,null,null,"月",null,null,null,"日",null,null,"システム番号",null,null,null,null,"選択式"]
[null,null,null,null,null,null,null,null,null,"申込区分"]
[null,null,null,null,null,null,null,null,null,null,"■","新規申し込み",null,null,null,null,"□","企業識別子追加"]
[null,null,null,null,null,null,null,null,null,"IDタイプ"]
[null,null,null,null,null,null,null,null,null,null,"□","共通ID/固定パスワード",null,null,null,null,null,null,null,"□","ユニークID/固定パスワード",null,null,null,null,null,null,null,null,null,null,"□","共通ID/固定パスワード（チップSIM）"]
[null,null,null,null,null,null,null,null,null,"会社名"]
[]
[]
[null,null,null,null,null,null,null,null,null,"システム管理者情報","担当者名"]
[]
[]
[null,null,null,null,null,null,null,null,null,null,"電話番号",null,null,null,null,null,null,null,null,null,null,null,null,null,null,null,null,"メールアドレス"]
[]
[]
[null,null,null,null,null,null,null,null,null,"システム名"]
[]
[null,null,null,null,null,null,null,null,null,null,"お客様のネットワークを表す名称です。システム番号を発行する際に指定したシステム名をご記入ください。(全角のみ)"]
[null,null,null,null,null,null,null,null,null,"企業識別子"]
[null,null,null,null,null,null,null,null,null,null,null,null,null,null,null,null,null,null,null,null,null,null,null,null,null,"ご指定の企業識別子の場合、ユーザIDに使える文字数は",null,null,null,null,null,null,null,null,null,null,null,null,null,{"$f":"16-VALUE(LEN(K28))","v":16},"文字です"]
[null,null,null,null,null,null,null,null,null,null,"※文字数は2～13文字の範囲でご記入ください。\n※利用可能な文字は「半角の英数字（大文字・小文字の区別あり）」、「-(ハイフン)」、「_(アンダースコア)」です。ただし数字のみ又は記号のみの指定はできません。\n※ご指定の企業識別子が他のお客様と重複する場合は、他の識別子への変更をお願いさせていただくことがあります。\n※ユーザIDは3～14 文字の範囲でカスタマコンソールより指定できます。"]
[null,null,null,null,null,null,null,null,null,"設定完了希望日",null,null,null,null,20,null,null,"年",null,null,null,"月",null,null,null,"日",null,"SIMおよび端末のお申込みは設定完了希望日以降に行えます。"]
[null,null,null,null,null,null,null,null,null,null,"　新規申し込み／企業識別子追加とも13営業日以降での指定をお願いします。"]
[null,null,null,null,null,null,null,null,null,"設定完了通知先",null,null,null,null,null,"□","通知しない",null,null,null,null,"□","通知する（システム管理者と同じ）"]
[null,null,null,null,null,null,null,null,null,null,null,null,null,null,null,null,null,null,null,null,null,"□","通知する（",null,null,null,null,null,null,"＠",null,null,null,null,null,null,"）","通知先メールアドレスを記載してください。"]
[null,null,null,null,null,null,null,null,null,null,"設定が完了したときにご指定のメールアドレスに設定完了通知メールを送付します。"]
[null,null,null,null,null,null,null,null,null,"基本設定"]
[null,null,null,null,null,null,null,null,null,"通信規格"]
[null,null,null,null,null,null,null,null,null,null,null,null,null,null,null,null,null,null,null,null,null,null,null,null,"■","LTE-IP"]
[null,null,null,null,null,null,null,null,null,null,"お客様端末でご利用される通信規格をご指定ください。"]
[null,null,null,null,null,null,null,null,null,null,"3GはPPPとIPでAPNが異なりますのでご注意ください。"]
[null,null,null,null,null,null,null,null,null,"端末IPアドレス帯"]
[null,null,null,null,null,null,null,null,null,null,"□","クラスA",null,null,"□","クラスB",null,null,"□","その他"]
[null,null,null,null,null,null,null,null,null,null,"お客様ネットワークでご利用されていないクラスをご指定ください。"]
[null,null,null,null,null,null,null,null,null,null,"クラスA・Bどちらもお客様側で利用中の場合、「その他」をご選択ください。"]
[null,null,null,null,null,null,null,null,null,"ご利用端末数"]
[]
[null,null,null,null,null,null,null,null,null,null,"3か月以内にご利用される予定の端末数（SIM枚数）をお選びください。端末のご利用状況が予定端末数を大幅に下回る場合は端末アドレスを削減する場合があります。"]
[null,null,null,null,null,null,null,null,null,null,"ご利用端末数を超える場合は本申込書で端末アドレス追加を申請することで端末（SIM）を追加できます。"]
[null,null,null,null,null,null,null,null,null,"オプションサービス"]
[null,null,null,null,null,null,null,null,null,"折り返し通信禁止（SIM同士の通信を禁止します）"]
[null,null,null,null,null,null,null,null,null,null,"□","利用しない",null,null,null,null,"□","利用する"]
[null,null,null,null,null,null,null,null,null,null,"企業識別子毎の設定です。"]
[null,null,null,null,null,null,null,null,null,null,"同一企業識別子の中で折り返し通信禁止／許可の混在はできません。"]
[]
[null,null,null,null,null,null,null,null,null,"NAT機能"]
[null,null,null,null,null,null,null,null,null,null,"□","利用しない",null,null,null,null,"□","利用する"]
[null,null,null,null,null,null,null,null,null,null,"ご利用頂く場合は以下の欄をご記入ください。"]
[null,null,null,null,null,null,null,null,null,null,"　NAT後のご利用IPアドレス帯：",null,null,null,null,null,null,null,null,null,null,null,null,null,null,null,null,null,"/"]
[null,null,null,null,null,null,null,null,null,null,"　NTTPC試験用IPアドレス："]
[null,null,null,null,null,null,null,null,null,null,"・当社指定となる端末IPアドレスに対して、お客様指定のご利用IPアドレス間との間でスタティックNATを設定します。"]
[null,null,null,null,null,null,null,null,null,null,"・NAT機能を「利用する」IDと、「利用しない」IDの混在はできません。"]
[null,null,null,null,null,null,null,null,null,"DNSアドレス付与"]
[null,null,null,null,null,null,null,null,null,null,"□","利用しない",null,null,null,null,"□","利用する"]
[null,null,null,null,null,null,null,null,null,null,"ご利用の場合は以下にDNSのアドレスをご記入ください。"]
[null,null,null,null,null,null,null,null,null,null,"　プライマリ",null,null,null,null,null,null,null,null,null,null,null,"　セカンダリ",null,null,null,null,null,null,null,null,null,null,"※セカンダリがない場合はプライマリのアドレスをご記入ください。"]
[null,null,null,null,null,null,null,null,null,"・企業識別子毎の設定となりますのでID単位で設定することはできません。\n・「利用しない」とした場合、網側からDNSアドレスは付与されません。iPad端末などのスマートフォンをご利用になる場合は「利用する」をご指定ください。"]
[null,null,null,null,null,null,null,null,null,"管理者設定"]
[null,null,null,null,null,null,null,null,null,"カスタマーコンソール利用管理者"]
[null,null,null,null,null,null,null,null,null,null,"カスタマコンソール機能をご利用する方のメールアドレスとパスワードをご記入ください。"]
[null,null,null,null,null,null,null,null,null,null,null,null,null,null,"ID(メールアドレス)",null,null,null,null,null,null,null,null,"@"]
[null,null,null,null,null,null,null,null,null,null,"・利用可能な文字種別は全て半角文字で、「a～z、A～Z」、「0～9」、「-(ハイフン)」、「_(アンダースコア)」、「.（ピリオド）」です。記号のみの登録はできません。"]
[null,null,null,null,null,null,null,null,null,null,"・ID(メールアドレス)は8文字以上、100文字以内でご記入ください。(@以降を含む)"]
[]
[null,null,null,null,null,null,null,null,null,null,null,null,null,null,"パスワード"]
[null,null,null,null,null,null,null,null,null,null,"・利用可能な文字種別は全て半角文字で、「a～z、A～Z」、「0～9」、および下記記号です。ただし、記号のみの登録はできません。"]
[null,null,null,null,null,null,null,null,null,null,"! （感嘆符） # （番号記号） $ （ドル記号） ( （左小かっこ） ) （右小かっこ） - （ハイフン） . （ピリオド） / （斜線） : （コロン） = （等号） @ （単価記号）"]
[null,null,null,null,null,null,null,null,null,null,"[ （左大かっこ） ] （右大かっこ） ^ （アクサンシルコンフレックス） _ （アンダーライン） ` （アクサングラーブ） { （左中かっこ） } （右中かっこ） ~ （チルダ）"]
[null,null,null,null,null,null,null,null,null,null,"・パスワードは8文字以上50文字以内でご記入ください。\n\n設定完了希望日以降、以下URLよりカスタマーコンソールへのログインが可能となります。\nhttps://mobile.customer.jp/#/login"]
[null,null,null,null,null,null,null,null,null,"API認証ID"]
[null,null,null,null,null,null,null,null,null,null,"SIM管理APIをご利用するときのIDとパスワードをご記入ください。"]
[null,null,null,null,null,null,null,null,null,null,null,"ユーザID",null,null,null,null,null,null,null,null,{"$f":"\"@\"&'AtMOSInput(ReadOnly)'!B8&\".ap.\"&'AtMOSInput(ReadOnly)'!B10","v":"@.ap.msone.jp"}]
[null,null,null,null,null,null,null,null,null,null,"・利用可能な文字種別は、「半角の英数字（大文字・小文字の区別あり）」、「-(ハイフン)」、「_(アンダースコア)」です。但し、記号のみの登録はできません。"]
[null,null,null,null,null,null,null,null,null,null,"・ユーザIDは3文字以上14文字以内でご記入ください。ただし、「ユーザID」と「企業識別子」の合計文字数が16文字以内でなければなりません。"]
[null,null,null,null,null,null,null,null,null,null,null,"パスワード"]
[null,null,null,null,null,null,null,null,null,null,"・パスワードの長さは半角3～15文字以内です。英字（大文字・小文字の区別あり）、数字、「-(ハイフン),_(アンダースコア)」のご利用が可能です。"]
[null,null,null,null,null,null,null,null,null,"宅配業者の指定",null,null,null,null,null,null,"なし",null,null,null,null,null,"※宅配業者の指定がある場合には下記に記載ください。"]
[null,null,null,null,null,null,null,null,null,"宅配業者名"]
[null,"NTTPC記入欄（以降はサービスオーダまでに販売担当者が記入してください）",null,null,null,null,null,null,null,null,null,null,null,null,null,null,null,null,null,null,null,null,null,null,"※半角の < (小なり)、> (大なり)、”(ダブルクォーテーション)、’(シングルクォーテーション)、% (パーセント)、; (セミコロン)、& (アンパサント)、\n  + (プラス)、\\ (円)、* (アスタリスク)、? (クエスチョンマーク)、| (パイプライン)、, (カンマ)、および改行コードは使用できません。"]
[null,"契約期間",null,null,null,null,null,null,null,0,null,null,null,null,null,null,null,null,null,null,null,"ヶ月","（初期設定時記入必須）"]
[null,"OEM・卸識別番号",null,null,null,null,null,null,null,null,null,null,null,null,null,null,null,null,null,null,null,"半角16文字以内（プロダクト部門より払い出し）"]
[null,"見積番号/契約番号",null,null,null,null,null,null,null,null,null,null,null,null,null,null,null,null,null,null,null,"記入必須（見積番号/契約番号に使用できる文字種は半角英数字、半角記号【@.-_#:】です。）"]
[null,"料金表確認",null,null,null,null,null,null,null,null,null,null,null,"□","確認しました",null,null,null,null,null,null,"チップSIM申し込み時記入必須"]
[null,"設定完了メール通知先",null,null,null,null,null,null,null,null,null,null,null,null,null,null,null,null,null,null,null,"設定完了時にメール通知を受けたい場合に記入してください。(任意)"]
[null,"請求先管理番号",null,null,null,null,null,null,null,null,null,null,null,null,null,null,null,null,null,null,null,"チップSIM申し込み時記入必須。それ以外は記入しても無効になります。"]

{"sheet":"記入例_初期設定・企業識別子追加","index":1,"n_rows":93,"n_cols":44,"rows_kept":93,"cut":false,"hidden":false,"merged":[[90,1,90,8],[92,1,92,8],[92,9,92,20],[92,21,92,44],[91,1,91,8],[91,9,91,20],[89,1,89,8],[89,9,89,20],[79,14,79,19],[79,20,79,35],[82,14,82,21],[84,9,84,15],[84,16,84,20],[85,9,85,15],[85,16,85,44],[86,1,86,44],[87,1,87,8],[87,9,87,20],[88,1,88,8],[88,9,88,20],[72,15,72,22],[77,22,77,24],[77,25,77,27],[49,11,49,15],[49,17,49,21],[57,21,57,27],[76,10,76,44],[61,17,61,21],[63,14,63,20],[63,26,63,32],[68,15,68,22],[68,24,68,36],[61,11,61,15],[54,11,54,15],[54,17,54,21],[56,21,56,27],[36,11,36,13],[36,18,36,20],[36,25,36,27],[29,23,29,24],[32,25,32,28],[29,15,29,16],[29,17,29,18],[29,19,29,20],[29,21,29,22],[56,29,56,31],[57,29,57,31],[40,11,40,13],[40,15,40,17],[40,19,40,21],[44,10,44,19],[32,30,32,35],[27,25,27,38],[28,10,28,44],[29,25,29,26],[27,10,27,23],[24,10,24,30],[9,27,9,31],[9,32,9,34],[9,35,9,36],[9,37,9,38],[15,10,15,30],[13,11,13,18],[9,9,9,11],[9,14,9,15],[1,1,1,44],[2,1,2,44],[3,1,3,44],[4,1,4,44],[5,1,5,44],[6,2,6,23],[7,2,7,23],[8,2,8,23],[9,41,9,42],[25,10,25,44],[18,10,18,30],[21,10,21,25],[21,27,21,43],[17,9,22,9],[9,12,9,13],[9,18,9,19],[9,22,9,23],[9,39,9,40],[9,43,9,44],[11,11,11,15],[11,17,11,21]]}
[]
[null,"Master'sONEモバイルスタンダードタイプ申込書"]
[]
[null,"初期設定シート／企業識別子追加シート"]
[]
[]
[null,null,"株式会社NTT PC コミュニケーションズ　御中"]
[null,null,"Master'sONE利用規約を承諾の上、下記の通り申し込みます。"]
[null,null,"＜太枠の中をご記入願います。また該当する個所の□を塗りつぶして下さい。＞"]
[null,null,null,null,null,null,null,null,"記入してください","お申込日",null,null,20,null,null,null,"年",null,9,null,"月",null,4,null,"日",null,null,"システム番号",null,null,null,null,"one",null,null,0,null,1,null,2,null,3,null,4]
[null,null,null,null,null,null,null,null,null,"申込区分"]
[null,null,null,null,null,null,null,null,null,null,"■","新規申し込み",null,null,null,null,"□","企業識別子追加"]
[null,null,null,null,null,null,null,null,null,"IDタイプ"]
[null,null,null,null,null,null,null,null,null,null,"□","共通ID/固定パスワード",null,null,null,null,null,null,null,"□","ユニークID/固定パスワード"]
[null,null,null,null,null,null,null,null,null,"会社名"]
[null,null,null,null,null,null,null,null,null,null,"株式会社エヌ・ティ・ティピー・シーコミュニケーションズ"]
[]
[null,null,null,null,null,null,null,null,null,"システム管理者情報","担当者名"]
[null,null,null,null,null,null,null,null,null,null,"PC次郎"]
[]
[null,null,null,null,null,null,null,null,null,null,"電話番号",null,null,null,null,null,null,null,null,null,null,null,null,null,null,null,null,"メールアドレス"]
[null,null,null,null,null,null,null,null,null,null,"00-0000-0000",null,null,null,null,null,null,null,null,null,null,null,null,null,null,null,null,"pctaro@nttpc.co.jp"]
[]
[null,null,null,null,null,null,null,null,null,"システム名"]
[null,null,null,null,null,null,null,null,null,null,"ＮＴＴＰＣ＿Ｍ２Ｍネットワーク"]
[null,null,null,null,null,null,null,null,null,null,"お客様のネットワークを表す名称です。システム番号を発行する際に指定したシステム名をご記入ください。(全角のみ)"]
[null,null,null,null,null,null,null,null,null,"企業識別子"]
[null,null,null,null,null,null,null,null,null,null,"nttpc-m2m",null,null,null,null,null,null,null,null,null,null,null,null,null,null,"ご指定の企業識別子の場合、ユーザIDに使える文字数は",null,null,null,null,null,null,null,null,null,null,null,null,null,{"$f":"16-VALUE(LEN(K28))","v":7},"文字です"]
[null,null,null,null,null,null,null,null,null,null,"※文字数は2～13文字の範囲でご記入ください。\n※利用可能な文字は「半角の英数字（大文字・小文字の区別あり）」、「-(ハイフン)」、「_(アンダースコア)」です。ただし数字のみ又は記号のみの指定はできません。\n※ご指定の企業識別子が他のお客様と重複する場合は、他の識別子への変更をお願いさせていただくことがあります。\n※ユーザIDは3～14 文字の範囲でカスタマコンソールより指定できます。"]
[null,null,null,null,null,null,null,null,null,"設定完了希望日",null,null,null,null,20,18,null,"年",null,9,null,"月",null,28,null,"日",null,"SIMおよび端末のお申込みは設定完了希望日以降に行えます。"]
[null,null,null,null,null,null,null,null,null,null,"　新規申し込み／企業識別子追加とも13営業日以降での指定をお願いします。"]
[null,null,null,null,null,null,null,null,null,"設定完了通知先",null,null,null,null,null,"□","通知しない",null,null,null,null,"■","通知する（システム管理者と同じ）"]
[null,null,null,null,null,null,null,null,null,null,null,null,null,null,null,null,null,null,null,null,null,"□","通知する（",null,null,null,null,null,null,"＠",null,null,null,null,null,null,"）","通知先メールアドレスを記載してください。"]
[null,null,null,null,null,null,null,null,null,null,"設定が完了したときにご指定のメールアドレスに設定完了通知メールを送付します。"]
[null,null,null,null,null,null,null,null,null,"基本設定"]
[null,null,null,null,null,null,null,null,null,"通信規格"]
[null,null,null,null,null,null,null,null,null,null,"□","3G-PPP",null,null,null,null,null,"□","3G-IP",null,null,null,null,null,"■","LTE-IP"]
[null,null,null,null,null,null,null,null,null,null,"お客様端末でご利用される通信規格をご指定ください。"]
[null,null,null,null,null,null,null,null,null,null,"3GはPPPとIPでAPNが異なりますのでご注意ください。"]
[null,null,null,null,null,null,null,null,null,"端末IPアドレス帯"]
[null,null,null,null,null,null,null,null,null,null,"■","クラスA",null,null,"□","クラスB",null,null,"□","その他"]
[null,null,null,null,null,null,null,null,null,null,"お客様ネットワークでご利用されていないクラスをご指定ください。"]
[null,null,null,null,null,null,null,null,null,null,"クラスA・Bどちらもお客様側で利用中の場合、「その他」をご選択ください。"]
[null,null,null,null,null,null,null,null,null,"ご利用端末数"]
[null,null,null,null,null,null,null,null,null,null,"29台(/27)"]
[null,null,null,null,null,null,null,null,null,null,"3か月以内にご利用される予定の端末数（SIM枚数）をお選びください。端末のご利用状況が予定端末数を大幅に下回る場合は端末アドレスを削減する場合があります。"]
[null,null,null,null,null,null,null,null,null,null,"ご利用端末数を超える場合は本申込書で端末アドレス追加を申請することで端末（SIM）を追加できます。"]
[null,null,null,null,null,null,null,null,null,"オプションサービス"]
[null,null,null,null,null,null,null,null,null,"折り返し通信禁止（モバイルM2M同士の通信を禁止します）"]
[null,null,null,null,null,null,null,null,null,null,"■","利用しない",null,null,null,null,"□","利用する"]
[null,null,null,null,null,null,null,null,null,null,"企業識別子毎の設定です。"]
[null,null,null,null,null,null,null,null,null,null,"同一企業識別子の中で折り返し通信禁止／許可の混在はできません。"]
[]
[null,null,null,null,null,null,null,null,null,"NAT機能"]
[null,null,null,null,null,null,null,null,null,null,"■","利用する",null,null,null,null,"□","利用しない"]
[null,null,null,null,null,null,null,null,null,null,"ご利用頂く場合は以下の欄をご記入ください。"]
[null,null,null,null,null,null,null,null,null,null,"　NAT後のご利用IPアドレス帯：",null,null,null,null,null,null,null,null,null,null,"192.168.1.0",null,null,null,null,null,null,"/",27,null,null,null,{"$f":"IF(リスト!B2=\"ng\",\"※NAT後アドレス帯と端末台数の数は同じにしてください。\",\"\")","v":""}]
[null,null,null,null,null,null,null,null,null,null,"　NTTPC試験用IPアドレス：",null,null,null,null,null,null,null,null,null,null,"192.168.1.30"]
[null,null,null,null,null,null,null,null,null,null,"・当社指定となる端末IPアドレスに対して、お客様指定のご利用IPアドレス間との間でスタティックNATを設定します。"]
[null,null,null,null,null,null,null,null,null,null,"・NAT機能を「利用する」IDと、「利用しない」IDの混在はできません。"]
[null,null,null,null,null,null,null,null,null,"DNSアドレス付与"]
[null,null,null,null,null,null,null,null,null,null,"□","利用しない",null,null,null,null,"■","利用する"]
[null,null,null,null,null,null,null,null,null,null,"ご利用の場合は以下にDNSのアドレスをご記入ください。"]
[null,null,null,null,null,null,null,null,null,null,"　プライマリ",null,null,null,"192.168.0.10",null,null,null,null,null,null,null,"　セカンダリ",null,null,null,"192.168.0.20",null,null,null,null,null,null,"※セカンダリがない場合はプライマリのアドレスをご記入ください。"]
[]
[null,null,null,null,null,null,null,null,null,"管理者設定"]
[null,null,null,null,null,null,null,null,null,"カスタマーコンソール利用管理者"]
[null,null,null,null,null,null,null,null,null,null,"カスタマコンソール機能をご利用する方のメールアドレスとパスワードをご記入ください。"]
[null,null,null,null,null,null,null,null,null,null,null,null,null,null,"ID(メールアドレス)","pctaro",null,null,null,null,null,null,null,"@","nttpc.co.jp"]
[null,null,null,null,null,null,null,null,null,null,"・利用可能な文字種別は全て半角文字で、「a～z、A～Z」、「0～9」、「-(ハイフン)」、「_(アンダースコア)」、「.（ピリオド）」です。記号のみの登録はできません。"]
[null,null,null,null,null,null,null,null,null,null,"・ID(メールアドレス)は8文字以上、100文字以内でご記入ください。(@以降を含む)"]
[]
[null,null,null,null,null,null,null,null,null,null,null,null,null,null,"パスワード","K6Y2TQ6B"]
[null,null,null,null,null,null,null,null,null,null,"・利用可能な文字種別は全て半角文字で、「a～z、A～Z」、「0～9」、および下記記号です。ただし、記号のみの登録はできません。"]
[null,null,null,null,null,null,null,null,null,null,"! （感嘆符） # （番号記号） $ （ドル記号） ( （左小かっこ） ) （右小かっこ） - （ハイフン） . （ピリオド） / （斜線） : （コロン） = （等号） @ （単価記号）"]
[null,null,null,null,null,null,null,null,null,null,"[ （左大かっこ） ] （右大かっこ） ^ （アクサンシルコンフレックス） _ （アンダーライン） ` （アクサングラーブ） { （左中かっこ） } （右中かっこ） ~ （チルダ）"]
[null,null,null,null,null,null,null,null,null,null,"・パスワードは8文字以上50文字以内でご記入ください。\n\n設定完了希望日以降、以下URLよりカスタマーコンソールへのログインが可能となります。\nhttps://mobile.customer.jp/#/login"]
[null,null,null,null,null,null,null,null,null,"API認証ID"]
[null,null,null,null,null,null,null,null,null,null,"SIM管理APIをご利用するときのIDとパスワードをご記入ください。"]
[null,null,null,null,null,null,null,null,null,null,null,"ユーザID",null,null,null,null,null,null,null,null,{"$f":"\"@\"&'AtMOSInput(ReadOnly)'!B8&\".ap.\"&'AtMOSInput(ReadOnly)'!B10","v":"@.ap.msone.jp"}]
[null,null,null,null,null,null,null,null,null,null,"・利用可能な文字種別は、「半角の英数字（大文字・小文字の区別あり）」、「-(ハイフン)」、「_(アンダースコア)」です。但し、記号のみの登録はできません。"]
[null,null,null,null,null,null,null,null,null,null,"・ユーザIDは3文字以上14文字以内でご記入ください。ただし、「ユーザID」と「企業識別子」の合計文字数が16文字以内でなければなりません。"]
[null,null,null,null,null,null,null,null,null,null,null,"パスワード"]
[null,null,null,null,null,null,null,null,null,null,"・パスワードの長さは半角3～15文字以内です。英字（大文字・小文字の区別あり）、数字、「-(ハイフン),_(アンダースコア)」のご利用が可能です。"]
[null,null,null,null,null,null,null,null,null,"宅配業者の指定",null,null,null,null,null,null,"なし",null,null,null,null,null,"※宅配業者の指定がある場合には下記に記載ください。"]
[null,null,null,null,null,null,null,null,null,"宅配業者名"]
[null,"NTTPC記入欄"]
[null,"契約期間",null,null,null,null,null,null,null,0,null,null,null,null,null,null,null,null,null,null,null,"ヶ月（初期設定時記入必須）"]
[null,"OEM・卸識別番号",null,null,null,null,null,null,null,null,null,null,null,null,null,null,null,null,null,null,null,"半角16文字以内（プロダクト部門より払い出し）"]
[null,"見積番号/契約番号",null,null,null,null,null,null,null,null,null,null,null,null,null,null,null,null,null,null,null,"記入必須（見積番号/契約番号に使用できる文字種は半角英数字、半角記号【@.-_#:】です。）"]
[null,"料金表確認",null,null,null,null,null,null,null,null,null,null,null,"□","確認しました",null,null,null,null,null,null,"チップSIM申し込み時記入必須"]
[null,"設定完了メール通知先",null,null,null,null,null,null,null,null,null,null,null,null,null,null,null,null,null,null,null,"設定完了時にメール通知を受けたい場合に記入してください。(任意)"]
[null,"請求先管理番号",null,null,null,null,null,null,null,null,null,null,null,null,null,null,null,null,null,null,null,"チップSIM申し込み時記入必須。それ以外は記入しても無効になります。"]

{"sheet":"ご利用までの流れ","index":2,"n_rows":0,"n_cols":0,"rows_kept":0,"cut":false,"hidden":false,"merged":[]}

{"sheet":"チップ型SIM料金表","index":3,"n_rows":52,"n_cols":5,"rows_kept":52,"cut":false,"hidden":true,"merged":[[45,3,46,3]]}
["料金表"]
[]
["Master'sONEモバイルスタンダードタイプ(旧称：モバイルM2M VPNタイプ)のお申込みにあたり、弊社が提供する"]
["カスタマーコンソールから利用開始登録をされたチップSIMは下記に定める提供料金が適用されます。"]
[]
["下記料金表は消費税及び地方消費税相当額を含まない金額を表示します。"]
[]
["■Master'sONEモバイルスタンダードタイプ(旧称：モバイルM2M VPNタイプ) 基本サービス月額料金（1回線毎)"]
["プラン","金額","金額(税込)","対応回線"]
["標準プラン",700,{"$f":"B10*1.1","v":770.00000000000011},"3G/LTE"]
["ライトプラン",280,{"$f":"B11*1.1","v":308},"3G/LTE"]
["従量プラン",280,308,"3G/LTE"]
["1GBプラン",720,792.00000000000011,"3G/LTE"]
["3GBプラン",1980,2178,"3G/LTE"]
["5GBプラン",2980,3278.0000000000005,"LTE"]
["10GBプラン",5480,6028.0000000000009,"LTE"]
["20GBプラン",7980,8778,"LTE"]
["30GBプラン",9980,10978,"LTE"]
["50GBプラン",12980,14278.000000000002,"LTE"]
["上り1GBプラン",420,462.00000000000006,"3G/LTE"]
["上り3GBプラン",680,748.00000000000011,"3G/LTE"]
["上り5GBプラン",920,1012.0000000000001,"LTE"]
["上り10GBプラン",1480,1628.0000000000002,"LTE"]
["上り30GBプラン",1980,2178,"LTE"]
["上り50GBプラン",2880,3168.0000000000005,"LTE"]
["上り100GBプラン",5920,6512.0000000000009,"LTE"]
["上り200GBプラン",9980,10978,"LTE"]
["休止プラン",150,165,"LTE"]
[]
["■Master'sONEモバイルスタンダードタイプ(旧称：モバイルM2M VPNタイプ) 基本サービス初期料金"]
["項目","金額","金額(税込)","対象"]
["事務手数料",1980,{"$f":"B32*1.1","v":2178},"1回線毎"]
["SIM発行手数料",394,{"$f":"ROUND(B33*1.1,0)","v":433},"1回線毎"]
["配送料",990,{"$f":"B34*1.1","v":1089},"1申し込み毎"]
["初期料金はチップSIM納品時に請求いたします。"]
[]
["■クーポン","上りクーポン","標準クーポン","上りクーポン(税込)","標準クーポン(税込)"]
["100MB",20,100,{"$f":"B38*1.1","v":22},{"$f":"C38*1.1","v":110.00000000000001}]
["300MB",60,300,{"$f":"B39*1.1","v":66},{"$f":"C39*1.1","v":330}]
["500MB",90,500,99.000000000000014,550]
["1GB(1024MB)",180,1000,198.00000000000003,1100]
["※クーポンの有効期限は発行より30日です。"]
[]
["■従量料金"]
["項目","金額","金額(税込)","対象"]
["上り通信料(1MBあたり)",0.2,{"$f":"B46*1.1","v":0.22000000000000003},"30MB / 月を超えた通信が対象となります。"]
["下り通信料(1MBあたり)",1,{"$f":"B47*1.1","v":1.1000000000000001}]
[]
["■Master'sONEモバイルスタンダードタイプ　その他料金"]
["項目","金額","金額(税込)","対象"]
["チップ型SIM維持料金",150,{"$f":"B51*1.1","v":165},"1回線毎/月額"]
["※本料金はチップSIMの納品後334日以降に利用開始登録がされなかったSIMに適用します。"]

{"sheet":"カード型SIM料金表","index":4,"n_rows":96,"n_cols":3,"rows_kept":96,"cut":false,"hidden":true,"merged":[[48,2,49,2],[92,0,95,0],[53,0,54,0],[69,0,70,0],[71,0,76,0],[79,0,82,0],[83,0,86,0],[89,0,89,5]]}
["料金表"]
[]
["Master'sONEモバイルスタンダードタイプ(旧称：モバイルM2M VPNタイプ)のお申込みにあたり、弊社が提供する"]
["カスタマーコンソールから発注されたSIMおよび端末は基本設定シートに記載された見積番号/契約番号で定める提供料金が適用されます。"]
["当該見積書/契約書等に記載のない項目については、利用規約および下記に規定する料金が適用されます。"]
[]
["以下、利用規約に定める料金を抜粋します。利用規約と以下記載の料金に齟齬がある場合は利用規約で定める料金が適用されます。"]
["Master'sONE利用規約：https://www.nttpc.co.jp/support/term/mastersone.html"]
[]
["下記料金表は消費税及び地方消費税相当額を含まない金額を表示します。"]
[]
["■Master'sONEモバイルスタンダードタイプ(旧称：モバイルM2M VPNタイプ) 基本サービス月額料金（1回線毎)"]
["プラン","金額(税抜)","対応回線"]
["標準プラン","700円(税込770円)","3G/LTE"]
["ライトプラン","280円(税込308円)","3G/LTE"]
["従量プラン","280円(税込308円)","3G/LTE"]
["1GBプラン","720円(税込792円)","3G/LTE"]
["3GBプラン","1,980円(税込2,178円)","3G/LTE"]
["5GBプラン","2,980円(税込3,278円)","LTE"]
["10GBプラン","5,480円(税込6,028円)","LTE"]
["20GBプラン","7,980円(税込8,778円)","LTE"]
["30GBプラン","9,980円(税込10,978円)","LTE"]
["50GBプラン","12,980円(税込14,278円)","LTE"]
["上り1GBプラン","420円(税込462円)","3G/LTE"]
["上り3GBプラン","680円(税込748円)","3G/LTE"]
["上り5GBプラン","920円(税込1,012円)","LTE"]
["上り10GBプラン","1,480円(税込1,628円)","LTE"]
["上り30GBプラン","1,980円(税込2,178円)","LTE"]
["上り50GBプラン","2,880円(税込3,168円)","LTE"]
["上り100GBプラン","5,920円(税込6,512円)","LTE"]
["上り200GBプラン","9,980円(税込10,978円)","LTE"]
["休止プラン","150円(税込165円)","LTE"]
[]
["■Master'sONEモバイルスタンダードタイプ(旧称：モバイルM2M VPNタイプ) 基本サービス初期料金"]
["項目","金額(税抜)","対象"]
["事務手数料","1,980円(税込2,178円)","1回線毎"]
["SIM発行手数料","394円(税込433円)","1回線毎"]
["配送料","990円(税込1,089円)","1申し込み毎"]
[]
["■クーポン","上りクーポン(税抜)","標準クーポン(税抜)"]
["100MB","20円(税込22円)","100円(税込110円)"]
["300MB","60円(税込66円)","300円(税込330円)"]
["500MB","90円(税込99円)","500円(税込550円)"]
["1GB(1024MB)","180円(税込198円)","1,000円(税込1,100円)"]
["※クーポンの有効期限は発行より30日です。"]
[]
["■従量料金"]
["項目","金額(税抜)","対象"]
["上り通信料(1MBあたり)","0.2円(税込0.22円)","30MB / 月を超えた通信が対象となります。"]
["下り通信料(1MBあたり)","1円(税込1.1円)"]
[]
["■端末レンタル料金（別途Master'sONEモバイルスタンダードタイプ(旧称：モバイルM2M VPNタイプ) 基本サービス初期料金が必要です)"]
[null,null,"金額（税抜）"]
["本体","USB端末","18,000(税込19,800円)"]
[null,"Wi-Fiルータ","25,000(税込27,500円)"]
[]
[]
["■端末購入料金（別途Master'sONEモバイルスタンダードタイプ(旧称：モバイルM2M VPNタイプ) 基本サービス初期料金が必要です)"]
[]
["セイコーソリューションズ（MB-A200シリーズ）"]
["※外部アンテナの利用に際しては、LTE通信を行うためにアンテナが1本必要となります。"]
[null,null,"金額（税抜）"]
["本体","MB-A200","59,800(税込65,780円)"]
["ACアダプタセット","MB-A200/ACアダプタ","62,700(税込68,970円)"]
["ACアダプタ/アンテナセット","MB-A200/ACアダプタ/外部アンテナ1本","70,200(税込77,220円)"]
[]
["サン電子（AXシリーズ/RXシリーズ)"]
["※LTEでご利用になる場合はアンテナが2本（MIMOアンテナの場合は1本）、3Gでご利用になる場合はアンテナが1本必要です"]
[null,null,"金額（税抜）"]
["本体","RX220","45,400(税込49,940円)"]
[null,"AX220","30,400(税込33,440円)"]
["オプション\n(単品の注文はできません)","ACアダプタ","4,000(税込4,400円)"]
[null,"LTEネオジムマグネットアンテナ×2本","13,400(税込14,740円)"]
[null,"LTEロッドアンテナ×2本","5,800(税込6,380円)"]
[null,"MBアンテナ×2本","6,800(税込7,480円)"]
[null,"MIMOアンテナ×1本","11,000(税込12,100円)"]
[null,"RADAアンテナ×1本","4,400(税込4,840円)"]
[]
["■延長保守料金",null,"金額（税抜）"]
["MB-A200","標準保証(3年)",0]
[null,"有償保証(5年)","7,000(税込7,700円)"]
[null,"有償保証/先出しセンドバック(3年)","2,000(税込2,200円)"]
[null,"有償保証/先出しセンドバック(5年)","9,000(税込9,900円)"]
["RXシリーズ/AXシリーズ","標準保証(1年)",0]
[null,"有償保証(2年)","3,000(税込3,300円)"]
[null,"有償保証(3年)","4,000(税込4,400円)"]
[null,"有償保証(5年)","7,000(税込7,700円)"]
[]
["ソリッド（ソリッドカメラ)"]
["※回線による映像閲覧について\nスマートフォンアプリによる映像閲覧は、Infosphere（インターネット）SIMご契約の場合のみご利用いただけます\nMaster’sONE（VPN）SIMご契約の場合はPCからの映像閲覧に限定される他、一部機能に制限がございます\n\n※オプションについて\nジャンクションボックス及び盗難防止カバーはキッティング対象外です。キッティングオプション選択時も\n未装着で同梱いたします\n本体に記憶領域が無いため、ご利用の際はSDカードが必須となります。SDカード付きをご選択いただくか、別途調達してください"]
[null,null,"金額（税抜）"]
["本体","IPC-16LTE LTE対応カメラ","100,000(税込110,000円)"]
["オプション\n(単品の注文はできません)","microSDカード for Viewla VSD-001064（64GB）","15,000(税込16,500円)"]
[null,"カード盗難防止カバー (C16-01)","5,000(税込5,500円)"]
[null,"ジャンクションボックス (JBX16-01)","10,000(税込11,000円)"]
[null,"キッティング","4,500(税込4,950円)"]

{"sheet":"AtMOSInput(ReadOnly)","index":5,"n_rows":51,"n_cols":4,"rows_kept":51,"cut":false,"hidden":true,"merged":[]}
["AtMOS項目名","AtMOS入力値","型","AtMOSコード"]
["申込日",{"$f":"IF(AND(初期設定・企業識別子追加!O10=\"\",初期設定・企業識別子追加!S10=\"\",初期設定・企業識別子追加!W10=\"\"),\"\",初期設定・企業識別子追加!M10&初期設定・企業識別子追加!O10&\"/\"&初期設定・企業識別子追加!S10&\"/\"&初期設定・企業識別子追加!W10)","v":""},"日付"]
["システム番号",{"$f":"初期設定・企業識別子追加!AG10 & 初期設定・企業識別子追加!AJ10 & 初期設定・企業識別子追加!AL10 & 初期設定・企業識別子追加!AN10 & 初期設定・企業識別子追加!AP10 & 初期設定・企業識別子追加!AR10","v":"選択式"},"文字列"]
["システム名",{"$f":"IF(初期設定・企業識別子追加!K25=\"\",\"\",初期設定・企業識別子追加!K25)","v":""},"文字列"]
["ネットワーク種別",{"$f":"IF(ISERROR(FIND(\"InfoSphere\",初期設定・企業識別子追加!B2)),1,2)","v":1},"コード：ネットワーク種別","1:VPNタイプ\n2:インターネットタイプ"]
["端末IPアドレス帯",{"$f":"IF(初期設定・企業識別子追加!K41=\"■\",\"3\",IF(初期設定・企業識別子追加!O41=\"■\",\"4\",IF(初期設定・企業識別子追加!S41=\"■\",\"2\",\"\")))","v":""},"コード：クラス","1:グローバルアドレス\n2:シェアードアドレス\n3:プライベートアドレス(クラスA)\n4:プライベートアドレス(クラスB)\n5:標準サービス（プライベートIP固定）"]
["サフィックス",{"$f":"B8&\".\" & B9& \".\" &B10","v":"..msone.jp"},"文字列"]
["【サフィックス】企業識別子",{"$f":"IF(初期設定・企業識別子追加!K28=\"\",\"\",初期設定・企業識別子追加!K28)","v":""},"文字列"]
["【サフィックス】サービス識別子",{"$f":"IF(AND(B12=1,B11=2),\"vc3\",IF(AND(B12=2,B11=2),\"vct\",IF(AND(B12=1,B11=1),\"vu3\",IF(AND(B12=2,B11=1),\"vut\",IF(AND(B12=5,B11=2),\"cva\",\"\")))))","v":""},"文字列"]
["【サフィックス】ドメイン","msone.jp","文字列"]
["認証方式",{"$f":"IF(AND(初期設定・企業識別子追加!K14=\"□\",初期設定・企業識別子追加!T14=\"□\",初期設定・企業識別子追加!AF14=\"□\"),\"\",IF(初期設定・企業識別子追加!T14=\"■\",1,2))","v":""},"コード：アカウントタイプ","1:ユニークID\n2:共通ID"]
["【通信方式】通信規格",{"$f":"IF(OR(初期設定・企業識別子追加!K37=\"■\",初期設定・企業識別子追加!R37=\"■\"),1,IF(AND(初期設定・企業識別子追加!Y37=\"■\",OR(初期設定・企業識別子追加!K14=\"■\",初期設定・企業識別子追加!T14=\"■\")),2,IF(AND(初期設定・企業識別子追加!Y37=\"■\",初期設定・企業識別子追加!AF14=\"■\"),5,\"\")))","v":""},"コード：通信規格","1:3G\n2:LTE\n3:バックアップ\n4:マルチキャリア\n5:チップSIMスタンダード\n6:チップSIMマルチキャリア"]
["【通信方式】PDPタイプ",{"$f":"IF(OR(初期設定・企業識別子追加!R37=\"■\",初期設定・企業識別子追加!Y37=\"■\"),2,IF(初期設定・企業識別子追加!K37=\"■\",1,\"\"))","v":2},"コード：PDPタイプ","1:PPP\n2:IP"]
["IPアドレス数",{"$f":"IFERROR(MID(初期設定・企業識別子追加!K45,FIND(\"/\",初期設定・企業識別子追加!K45),3),\"\")","v":""},"文字列"]
["【NAT機能】NAT機能有無",{"$f":"IF(初期設定・企業識別子追加!Q55=\"■\",1,IF(初期設定・企業識別子追加!K55=\"■\",0,\"\"))","v":""},"コード：NAT利用","0:利用しない\n1:利用する"]
["【NAT機能】NAT後アドレス帯",{"$f":"IF(初期設定・企業識別子追加!V57=\"\",\"\",初期設定・企業識別子追加!V57)","v":""},"文字列"]
["【NAT機能】NAT後IPアドレス数",{"$f":"IF(初期設定・企業識別子追加!AD57=\"\",\"\",\"/\" & 初期設定・企業識別子追加!AD57)","v":""},"文字列"]
["【NAT機能】NAT後試験アドレス",{"$f":"IF(初期設定・企業識別子追加!V58=\"\",\"\",初期設定・企業識別子追加!V58)","v":""},"文字列"]
["折り返し通信禁止",{"$f":"IF(初期設定・企業識別子追加!K50=\"■\",0,IF(初期設定・企業識別子追加!Q50=\"■\",1,\"\"))","v":""},"コード：折り返し通信禁止有無","0:利用しない\n1:利用する"]
["【SIM管理API】SIM管理API有無",{"$f":"IF(初期設定・企業識別子追加!K12=\"■\",0,\"\")","v":0},"コード：SIM管理API利用","0:利用しない\n1:利用する"]
["【SIM管理API】ユーザID",{"$f":"IF(初期設定・企業識別子追加!O80=\"\",\"\",初期設定・企業識別子追加!O80)","v":""},"文字列"]
["【SIM管理API】パスワード",{"$f":"IF(初期設定・企業識別子追加!O83=\"\",\"\",初期設定・企業識別子追加!O83)","v":""},"文字列"]
["【DNSアドレス付与】DNSアドレス付与有無",{"$f":"IF(初期設定・企業識別子追加!K62=\"■\",0,IF(初期設定・企業識別子追加!Q62=\"■\",1,\"\"))","v":""},"コード：DNSアドレス付与","0:利用しない\n1:利用する"]
["【DNSアドレス付与】プライマリDNS",{"$f":"IF(初期設定・企業識別子追加!O64=\"\",\"\",初期設定・企業識別子追加!O64)","v":""},"文字列"]
["【DNSアドレス付与】セカンダリDNS",{"$f":"IF(初期設定・企業識別子追加!AA64=\"\",\"\",初期設定・企業識別子追加!AA64)","v":""},"文字列"]
["【カスタマコントロール利用管理者】ユーザID",{"$f":"IF(初期設定・企業識別子追加!P69=\"\",\"\",初期設定・企業識別子追加!P69&初期設定・企業識別子追加!X69&初期設定・企業識別子追加!Y69)","v":""},"文字列"]
["【カスタマコントロール利用管理者】パスワード",{"$f":"IF(初期設定・企業識別子追加!P73=\"\",\"\",初期設定・企業識別子追加!P73)","v":""},"文字列"]
["最低利用期間",{"$f":"IF(初期設定・企業識別子追加!J88=\"\",\"\",初期設定・企業識別子追加!J88)","v":0},"数値（月数）"]
["利用開始希望日",{"$f":"IF(AND(初期設定・企業識別子追加!P30=\"\",  初期設定・企業識別子追加!T30=\"\", 初期設定・企業識別子追加!X30=\"\"),\"\",  初期設定・企業識別子追加!O30 &初期設定・企業識別子追加!P30& \"/\" & 初期設定・企業識別子追加!T30 & \"/\" & 初期設定・企業識別子追加!X30)","v":""},"日付"]
["契約番号",{"$f":"IF(初期設定・企業識別子追加!J90=\"\",\"\",初期設定・企業識別子追加!J90)","v":""},"文字列"]
["OEM・代理店識別番号",{"$f":"IF(初期設定・企業識別子追加!Q12=\"■\",\"\",IF(初期設定・企業識別子追加!J89=\"\",\"\",初期設定・企業識別子追加!J89))","v":""},"文字列"]
["未使用"]
["未使用"]
["未使用"]
["未使用"]
["未使用"]
["未使用"]
["未使用"]
["設定完了通知先アドレス(ユーザ)",{"$f":"IF(OR(AND(初期設定・企業識別子追加!P32=\"□\",初期設定・企業識別子追加!V32=\"□\",初期設定・企業識別子追加!V33=\"□\"),初期設定・企業識別子追加!P32=\"■\"),\"\",IF(初期設定・企業識別子追加!V32=\"■\",初期設定・企業識別子追加!AB22,初期設定・企業識別子追加!Z33&\"@\"&初期設定・企業識別子追加!AE33))","v":""},"文字列"]
["設定完了通知先アドレス(営業/OEM)",{"$f":"IF(初期設定・企業識別子追加!J92=\"\",\"\",初期設定・企業識別子追加!J92)","v":""}]
["設定完了通知先アドレス(プロダクト)","mobile-g@nttpc.co.jp"]
[]
[]
[]
[]
[]
[]
["請求先管理番号",{"$f":"IF(B12=5,IF(初期設定・企業識別子追加!J93<>\"\",初期設定・企業識別子追加!J93,\"\"),\"\")","v":""}]
["1SIMあたり無料通信量",30720]
["従量課金通信料単価(上り)",{"$f":"チップ型SIM料金表!B46","v":0.2}]
["従量課金通信料単価(下り)",{"$f":"チップ型SIM料金表!B47","v":1}]

{"sheet":"AtMOSInputUnitPrice(ReadOnly)","index":6,"n_rows":304,"n_cols":8,"rows_kept":304,"cut":false,"hidden":true,"merged":[]}
["適用開始年月","明細内訳コード","型番","端末機種コード","金額","請求明細名","端末名称（レンタル・物販の場合）","備考"]
[null,"P00001445","UX302NC",null,0,"端末初期費用（ＵＳＢ）：","UX302NC"]
[null,"P00001445","UX302NC-R",null,"0","端末初期費用（ＵＳＢ）：","UX302NC-R"]
[null,"P00001445","MF121/USB(S)",null,0,"端末初期費用（ＵＳＢ）：","MF121"]
[null,"P00001445","WM320/USB(SL)",null,0,"端末初期費用（ＵＳＢ）：","WM320"]
[null,"P00001446","PA-MR05LN",null,"0","端末初期費用（ＷｉＦｉ）：","Aterm MR05LN"]
[null,"P00001446","PA-MR05LN-CLD",null,"0","端末初期費用（ＷｉＦｉ）：","Aterm MR05LN クレードルセット"]
[null,"P00001446","MR04LN/WiFi(SL)",null,0,"端末初期費用（ＷｉＦｉ）：","Aterm MR04LN"]
[null,"P00001446","MR04LN(CDL)/WiFi(SL)",null,0,"端末初期費用（ＷｉＦｉ）：","Aterm MR04LN クレードルセット"]
[null,"P00001446","MR03LN/WiFi(SL)",null,0,"端末初期費用（ＷｉＦｉ）：","Aterm MR03LN"]
[null,"P00001448","A110-AC1AN0-X01",null,0,"端末一括購入代金：","MB-A110 ACアダプタ付#標準保証(1年)"]
[null,"P00001448","A110-AC1AN0-X02",null,0,"端末一括購入代金：","MB-A110 ACアダプタ付#有償保証(2年)"]
[null,"P00001448","A110-AC1AN0-X03",null,0,"端末一括購入代金：","MB-A110 ACアダプタ付#有償保証(3年)"]
[null,"P00001448","A110-AC1AN0-X05",null,0,"端末一括購入代金：","MB-A110 ACアダプタ付#有償保証(5年)"]
[null,"P00001448","A110-AC1AN0-Y01",null,0,"端末一括購入代金：","MB-A110 ACアダプタ付#有償保証/先出しセンドバック(1年)"]
[null,"P00001448","A110-AC1AN0-Y02",null,0,"端末一括購入代金：","MB-A110 ACアダプタ付#有償保証/先出しセンドバック(2年)"]
[null,"P00001448","A110-AC1AN0-Y03",null,0,"端末一括購入代金：","MB-A110 ACアダプタ付#有償保証/先出しセンドバック(3年)"]
[null,"P00001448","A110-AC1AN0-Y05",null,0,"端末一括購入代金：","MB-A110 ACアダプタ付#有償保証/先出しセンドバック(5年)"]
[null,"P00001448","A100-AC1AN0-X01",null,0,"端末一括購入代金：","MB-A100 ACアダプタ付#標準保証(1年)"]
[null,"P00001448","A100-AC1AN0-X02",null,0,"端末一括購入代金：","MB-A100 ACアダプタ付#有償保証(2年)"]
[null,"P00001448","A100-AC1AN0-X03",null,0,"端末一括購入代金：","MB-A100 ACアダプタ付#有償保証(3年)"]
[null,"P00001448","A100-AC1AN0-X05",null,0,"端末一括購入代金：","MB-A100 ACアダプタ付#有償保証(5年)"]
[null,"P00001448","A100-AC1AN0-Y01",null,0,"端末一括購入代金：","MB-A100 ACアダプタ付#有償保証/先出しセンドバック(1年)"]
[null,"P00001448","A100-AC1AN0-Y02",null,0,"端末一括購入代金：","MB-A100 ACアダプタ付#有償保証/先出しセンドバック(2年)"]
[null,"P00001448","A100-AC1AN0-Y03",null,0,"端末一括購入代金：","MB-A100 ACアダプタ付#有償保証/先出しセンドバック(3年)"]
[null,"P00001448","A100-AC1AN0-Y05",null,0,"端末一括購入代金：","MB-A100 ACアダプタ付#有償保証/先出しセンドバック(5年)"]
[null,"P00001448","A110-AC1AN1-X01",null,0,"端末一括購入代金：","MB-A110 ACアダプタ付/外部アンテナ1本#標準保証(1年)"]
[null,"P00001448","A110-AC1AN2-X02",null,0,"端末一括購入代金：","MB-A110 ACアダプタ付/外部アンテナ2本#有償保証(2年)"]
[null,"P00001448","A110-AC1AN2-X03",null,0,"端末一括購入代金：","MB-A110 ACアダプタ付/外部アンテナ2本#有償保証(3年)"]
[null,"P00001448","A110-AC1AN1-X05",null,0,"端末一括購入代金：","MB-A110 ACアダプタ付/外部アンテナ1本#有償保証(5年)"]
[null,"P00001448","A110-AC1AN1-Y01",null,0,"端末一括購入代金：","MB-A110 ACアダプタ付/外部アンテナ1本#有償保証/先出しセンドバック(1年)"]
[null,"P00001448","A110-AC1AN2-Y02",null,0,"端末一括購入代金：","MB-A110 ACアダプタ付/外部アンテナ2本#有償保証/先出しセンドバック(2年)"]
[null,"P00001448","A110-AC1AN2-Y03",null,0,"端末一括購入代金：","MB-A110 ACアダプタ付/外部アンテナ2本#有償保証/先出しセンドバック(3年)"]
[null,"P00001448","A110-AC1AN1-Y05",null,0,"端末一括購入代金：","MB-A110 ACアダプタ付/外部アンテナ1本#有償保証/先出しセンドバック(5年)"]
[null,"P00001448","A100-AC1AN1-X01",null,0,"端末一括購入代金：","MB-A100 ACアダプタ付/外部アンテナ1本#標準保証(1年)"]
[null,"P00001448","A100-AC1AN2-X02",null,0,"端末一括購入代金：","MB-A100 ACアダプタ付/外部アンテナ2本#有償保証(2年)"]
[null,"P00001448","A100-AC1AN2-X03",null,0,"端末一括購入代金：","MB-A100 ACアダプタ付/外部アンテナ2本#有償保証(3年)"]
[null,"P00001448","A100-AC1AN1-X05",null,0,"端末一括購入代金：","MB-A100 ACアダプタ付/外部アンテナ1本#有償保証(5年)"]
[null,"P00001448","A100-AC1AN1-Y01",null,0,"端末一括購入代金：","MB-A100 ACアダプタ付/外部アンテナ1本#有償保証/先出しセンドバック(1年)"]
[null,"P00001448","A100-AC1AN2-Y02",null,0,"端末一括購入代金：","MB-A100 ACアダプタ付/外部アンテナ2本#有償保証/先出しセンドバック(2年)"]
[null,"P00001448","A100-AC1AN2-Y03",null,0,"端末一括購入代金：","MB-A100 ACアダプタ付/外部アンテナ2本#有償保証/先出しセンドバック(3年)"]
[null,"P00001448","A100-AC1AN1-Y05",null,0,"端末一括購入代金：","MB-A100 ACアダプタ付/外部アンテナ1本#有償保証/先出しセンドバック(5年)"]
[null,"P00001448","A100-AC0AN0-X01",null,0,"端末一括購入代金：","MB-A100#標準保証(1年)"]
[null,"P00001448","A100-AC0AN0-X02",null,0,"端末一括購入代金：","MB-A100#有償保証(2年)"]
[null,"P00001448","A100-AC0AN0-X03",null,0,"端末一括購入代金：","MB-A100#有償保証(3年)"]
[null,"P00001448","A100-AC0AN0-X05",null,0,"端末一括購入代金：","MB-A100#有償保証(5年)"]
[null,"P00001448","A100-AC0AN0-Y01",null,0,"端末一括購入代金：","MB-A100#有償保証/先出しセンドバック(1年)"]
[null,"P00001448","A100-AC0AN0-Y02",null,0,"端末一括購入代金：","MB-A100#有償保証/先出しセンドバック(2年)"]
[null,"P00001448","A100-AC0AN0-Y03",null,0,"端末一括購入代金：","MB-A100#有償保証/先出しセンドバック(3年)"]
[null,"P00001448","A100-AC0AN0-Y05",null,0,"端末一括購入代金：","MB-A100#有償保証/先出しセンドバック(5年)"]
[null,"P00001448","A110-AC0AN0-X01",null,0,"端末一括購入代金：","MB-A110#標準保証(1年)"]
[null,"P00001448","A110-AC0AN0-X02",null,0,"端末一括購入代金：","MB-A110#有償保証(2年)"]
[null,"P00001448","A110-AC0AN0-X03",null,0,"端末一括購入代金：","MB-A110#有償保証(3年)"]
[null,"P00001448","A110-AC0AN0-X05",null,0,"端末一括購入代金：","MB-A110#有償保証(5年)"]
[null,"P00001448","A110-AC0AN0-Y01",null,0,"端末一括購入代金：","MB-A110#有償保証/先出しセンドバック(1年)"]
[null,"P00001448","A110-AC0AN0-Y02",null,0,"端末一括購入代金：","MB-A110#有償保証/先出しセンドバック(2年)"]
[null,"P00001448","A110-AC0AN0-Y03",null,0,"端末一括購入代金：","MB-A110#有償保証/先出しセンドバック(3年)"]
[null,"P00001448","A110-AC0AN0-Y05",null,0,"端末一括購入代金：","MB-A110#有償保証/先出しセンドバック(5年)"]
[null,"P00001448","RX210-AC000-ANT0-X01",null,0,"端末一括購入代金：","RX210#標準保証(1年)"]
[null,"P00001448","RX210-AC000-ANT0-X02",null,0,"端末一括購入代金：","RX210#有償保証(2年)"]
[null,"P00001448","RX210-AC000-ANT0-X03",null,0,"端末一括購入代金：","RX210#有償保証(3年)"]
[null,"P00001448","RX210-AC000-ANT0-X05",null,0,"端末一括購入代金：","RX210#有償保証(5年)"]
[null,"P00001448","RX210-AC020-ANT0-X01",null,0,"端末一括購入代金：","RX210 ACアダプタ付#標準保証(1年)"]
[null,"P00001448","RX210-AC020-ANT0-X02",null,0,"端末一括購入代金：","RX210 ACアダプタ付#有償保証(2年)"]
[null,"P00001448","RX210-AC020-ANT0-X03",null,0,"端末一括購入代金：","RX210 ACアダプタ付#有償保証(3年)"]
[null,"P00001448","RX210-AC020-ANT0-X05",null,0,"端末一括購入代金：","RX210 ACアダプタ付#有償保証(5年)"]
[null,"P00001448","RX210-AC000-ROD2-X01",null,0,"端末一括購入代金：","RX210/LTEロッドアンテナ×2本#標準保証(1年)"]
[null,"P00001448","RX210-AC000-ROD2-X02",null,0,"端末一括購入代金：","RX210/LTEロッドアンテナ×2本#有償保証(2年)"]
[null,"P00001448","RX210-AC000-ROD2-X03",null,0,"端末一括購入代金：","RX210/LTEロッドアンテナ×2本#有償保証(3年)"]
[null,"P00001448","RX210-AC000-ROD2-X05",null,0,"端末一括購入代金：","RX210/LTEロッドアンテナ×2本#有償保証(5年)"]
[null,"P00001448","RX210-AC000-NEO2-X01",null,0,"端末一括購入代金：","RX210/LTEネオジムマグネットアンテナ×2本#標準保証(1年)"]
[null,"P00001448","RX210-AC000-NEO2-X02",null,0,"端末一括購入代金：","RX210/LTEネオジムマグネットアンテナ×2本#有償保証(2年)"]
[null,"P00001448","RX210-AC000-NEO2-X03",null,0,"端末一括購入代金：","RX210/LTEネオジムマグネットアンテナ×2本#有償保証(3年)"]
[null,"P00001448","RX210-AC000-NEO2-X05",null,0,"端末一括購入代金：","RX210/LTEネオジムマグネットアンテナ×2本#有償保証(5年)"]
[null,"P00001448","RX210-AC000-MB2-X01",null,0,"端末一括購入代金：","RX210/MBアンテナ×2本#標準保証(1年)"]
[null,"P00001448","RX210-AC000-MB2-X02",null,0,"端末一括購入代金：","RX210/MBアンテナ×2本#有償保証(2年)"]
[null,"P00001448","RX210-AC000-MB2-X03",null,0,"端末一括購入代金：","RX210/MBアンテナ×2本#有償保証(3年)"]
[null,"P00001448","RX210-AC000-MB2-X05",null,0,"端末一括購入代金：","RX210/MBアンテナ×2本#有償保証(5年)"]
[null,"P00001448","RX210-AC020-ROD2-X01",null,0,"端末一括購入代金：","RX210 ACアダプタ付/LTEロッドアンテナ×2本#標準保証(1年)"]
[null,"P00001448","RX210-AC020-ROD2-X02",null,0,"端末一括購入代金：","RX210 ACアダプタ付/LTEロッドアンテナ×2本#有償保証(2年)"]
[null,"P00001448","RX210-AC020-ROD2-X03",null,0,"端末一括購入代金：","RX210 ACアダプタ付/LTEロッドアンテナ×2本#有償保証(3年)"]
[null,"P00001448","RX210-AC020-ROD2-X05",null,0,"端末一括購入代金：","RX210 ACアダプタ付/LTEロッドアンテナ×2本#有償保証(5年)"]
[null,"P00001448","RX210-AC020-NEO2-X01",null,0,"端末一括購入代金：","RX210 ACアダプタ付/LTEネオジムマグネットアンテナ×2本#標準保証(1年)"]
[null,"P00001448","RX210-AC020-NEO2-X02",null,0,"端末一括購入代金：","RX210 ACアダプタ付/LTEネオジムマグネットアンテナ×2本#有償保証(2年)"]
[null,"P00001448","RX210-AC020-NEO2-X03",null,0,"端末一括購入代金：","RX210 ACアダプタ付/LTEネオジムマグネットアンテナ×2本#有償保証(3年)"]
[null,"P00001448","RX210-AC020-NEO2-X05",null,0,"端末一括購入代金：","RX210 ACアダプタ付/LTEネオジムマグネットアンテナ×2本#有償保証(5年)"]
[null,"P00001448","RX210-AC020-MB2-X01",null,0,"端末一括購入代金：","RX210 ACアダプタ付/MBアンテナ×2本#標準保証(1年)"]
[null,"P00001448","RX210-AC020-MB2-X02",null,0,"端末一括購入代金：","RX210 ACアダプタ付/MBアンテナ×2本#有償保証(2年)"]
[null,"P00001448","RX210-AC020-MB2-X03",null,0,"端末一括購入代金：","RX210 ACアダプタ付/MBアンテナ×2本#有償保証(3年)"]
[null,"P00001448","RX210-AC020-MB2-X05",null,0,"端末一括購入代金：","RX210 ACアダプタ付/MBアンテナ×2本#有償保証(5年)"]
[null,"P00001448","RX110-AC000-ANT0-X01",null,0,"端末一括購入代金：","RX110#標準保証(1年)"]
[null,"P00001448","RX110-AC000-ANT0-X02",null,0,"端末一括購入代金：","RX110#有償保証(2年)"]
[null,"P00001448","RX110-AC000-ANT0-X03",null,0,"端末一括購入代金：","RX110#有償保証(3年)"]
[null,"P00001448","RX110-AC000-ANT0-X05",null,0,"端末一括購入代金：","RX110#有償保証(5年)"]
[null,"P00001448","RX110-AC020-ANT0-X01",null,0,"端末一括購入代金：","RX110 ACアダプタ付#標準保証(1年)"]
[null,"P00001448","RX110-AC020-ANT0-X02",null,0,"端末一括購入代金：","RX110 ACアダプタ付#有償保証(2年)"]
[null,"P00001448","RX110-AC020-ANT0-X03",null,0,"端末一括購入代金：","RX110 ACアダプタ付#有償保証(3年)"]
[null,"P00001448","RX110-AC020-ANT0-X05",null,0,"端末一括購入代金：","RX110 ACアダプタ付#有償保証(5年)"]
[null,"P00001448","RX110-AC000-RAD1-X01",null,0,"端末一括購入代金：","RX110/RADAアンテナ×1本#標準保証(1年)"]
[null,"P00001448","RX110-AC000-RAD1-X02",null,0,"端末一括購入代金：","RX110/RADAアンテナ×1本#有償保証(2年)"]
[null,"P00001448","RX110-AC000-RAD1-X03",null,0,"端末一括購入代金：","RX110/RADAアンテナ×1本#有償保証(3年)"]
[null,"P00001448","RX110-AC000-RAD1-X05",null,0,"端末一括購入代金：","RX110/RADAアンテナ×1本#有償保証(5年)"]
[null,"P00001448","RX110-AC000-MAG1-X01",null,0,"端末一括購入代金：","RX110/マグネットアンテナ×1本#標準保証(1年)"]
[null,"P00001448","RX110-AC000-MAG1-X02",null,0,"端末一括購入代金：","RX110/マグネットアンテナ×1本#有償保証(2年)"]
[null,"P00001448","RX110-AC000-MAG1-X03",null,0,"端末一括購入代金：","RX110/マグネットアンテナ×1本#有償保証(3年)"]
[null,"P00001448","RX110-AC000-MAG1-X05",null,0,"端末一括購入代金：","RX110/マグネットアンテナ×1本#有償保証(5年)"]
[null,"P00001448","RX110-AC020-RAD1-X01",null,0,"端末一括購入代金：","RX110 ACアダプタ付/RADAアンテナ×1本#標準保証(1年)"]
[null,"P00001448","RX110-AC020-RAD1-X02",null,0,"端末一括購入代金：","RX110 ACアダプタ付/RADAアンテナ×1本#有償保証(2年)"]
[null,"P00001448","RX110-AC020-RAD1-X03",null,0,"端末一括購入代金：","RX110 ACアダプタ付/RADAアンテナ×1本#有償保証(3年)"]
[null,"P00001448","RX110-AC020-RAD1-X05",null,0,"端末一括購入代金：","RX110 ACアダプタ付/RADAアンテナ×1本#有償保証(5年)"]
[null,"P00001448","RX110-AC020-MAG1-X01",null,0,"端末一括購入代金：","RX110 ACアダプタ付/マグネットアンテナ×1本#標準保証(1年)"]
[null,"P00001448","RX110-AC020-MAG1-X02",null,0,"端末一括購入代金：","RX110 ACアダプタ付/マグネットアンテナ×1本#有償保証(2年)"]
[null,"P00001448","RX110-AC020-MAG1-X03",null,0,"端末一括購入代金：","RX110 ACアダプタ付/マグネットアンテナ×1本#有償保証(3年)"]
[null,"P00001448","RX110-AC020-MAG1-X05",null,0,"端末一括購入代金：","RX110 ACアダプタ付/マグネットアンテナ×1本#有償保証(5年)"]
[null,"P00001448","AX220-AC000-ANT0-X01",null,0,"端末一括購入代金：","AX220#標準保証(1年)"]
[null,"P00001448","AX220-AC000-ANT0-X02",null,0,"端末一括購入代金：","AX220#有償保証(2年)"]
[null,"P00001448","AX220-AC000-ANT0-X03",null,0,"端末一括購入代金：","AX220#有償保証(3年)"]
[null,"P00001448","AX220-AC000-ANT0-X05",null,0,"端末一括購入代金：","AX220#有償保証(5年)"]
[null,"P00001448","AX220-AC021-ANT0-X01",null,0,"端末一括購入代金：","AX220 ACアダプタ付#標準保証(1年)"]
[null,"P00001448","AX220-AC021-ANT0-X02",null,0,"端末一括購入代金：","AX220 ACアダプタ付#有償保証(2年)"]
[null,"P00001448","AX220-AC021-ANT0-X03",null,0,"端末一括購入代金：","AX220 ACアダプタ付#有償保証(3年)"]
[null,"P00001448","AX220-AC021-ANT0-X05",null,0,"端末一括購入代金：","AX220 ACアダプタ付#有償保証(5年)"]
[null,"P00001448","AX220-AC000-ROD2-X01",null,0,"端末一括購入代金：","AX220/LTEロッドアンテナ×2本#標準保証(1年)"]
[null,"P00001448","AX220-AC000-ROD2-X02",null,0,"端末一括購入代金：","AX220/LTEロッドアンテナ×2本#有償保証(2年)"]
[null,"P00001448","AX220-AC000-ROD2-X03",null,0,"端末一括購入代金：","AX220/LTEロッドアンテナ×2本#有償保証(3年)"]
[null,"P00001448","AX220-AC000-ROD2-X05",null,0,"端末一括購入代金：","AX220/LTEロッドアンテナ×2本#有償保証(5年)"]
[null,"P00001448","AX220-AC000-NEO2-X01",null,0,"端末一括購入代金：","AX220/LTEネオジムマグネットアンテナ×2本#標準保証(1年)"]
[null,"P00001448","AX220-AC000-NEO2-X02",null,0,"端末一括購入代金：","AX220/LTEネオジムマグネットアンテナ×2本#有償保証(2年)"]
[null,"P00001448","AX220-AC000-NEO2-X03",null,0,"端末一括購入代金：","AX220/LTEネオジムマグネットアンテナ×2本#有償保証(3年)"]
[null,"P00001448","AX220-AC000-NEO2-X05",null,0,"端末一括購入代金：","AX220/LTEネオジムマグネットアンテナ×2本#有償保証(5年)"]
[null,"P00001448","AX220-AC000-MB2-X01",null,0,"端末一括購入代金：","AX220/MBアンテナ×2本#標準保証(1年)"]
[null,"P00001448","AX220-AC000-MB2-X02",null,0,"端末一括購入代金：","AX220/MBアンテナ×2本#有償保証(2年)"]
[null,"P00001448","AX220-AC000-MB2-X03",null,0,"端末一括購入代金：","AX220/MBアンテナ×2本#有償保証(3年)"]
[null,"P00001448","AX220-AC000-MB2-X05",null,0,"端末一括購入代金：","AX220/MBアンテナ×2本#有償保証(5年)"]
[null,"P00001448","AX220-AC000-MIM1-X01",null,0,"端末一括購入代金：","AX220/MIMOアンテナ×1本#標準保証(1年)"]
[null,"P00001448","AX220-AC000-MIM1-X02",null,0,"端末一括購入代金：","AX220/MIMOアンテナ×1本#有償保証(2年)"]
[null,"P00001448","AX220-AC000-MIM1-X03",null,0,"端末一括購入代金：","AX220/MIMOアンテナ×1本#有償保証(3年)"]
[null,"P00001448","AX220-AC000-MIM1-X05",null,0,"端末一括購入代金：","AX220/MIMOアンテナ×1本#有償保証(5年)"]
[null,"P00001448","AX220-AC021-ROD2-X01",null,0,"端末一括購入代金：","AX220 ACアダプタ付/LTEロッドアンテナ×2本#標準保証(1年)"]
[null,"P00001448","AX220-AC021-ROD2-X02",null,0,"端末一括購入代金：","AX220 ACアダプタ付/LTEロッドアンテナ×2本#有償保証(2年)"]
[null,"P00001448","AX220-AC021-ROD2-X03",null,0,"端末一括購入代金：","AX220 ACアダプタ付/LTEロッドアンテナ×2本#有償保証(3年)"]
[null,"P00001448","AX220-AC021-ROD2-X05",null,0,"端末一括購入代金：","AX220 ACアダプタ付/LTEロッドアンテナ×2本#有償保証(5年)"]
[null,"P00001448","AX220-AC021-NEO2-X01",null,0,"端末一括購入代金：","AX220 ACアダプタ付/LTEネオジムマグネットアンテナ×2本#標準保証(1年)"]
[null,"P00001448","AX220-AC021-NEO2-X02",null,0,"端末一括購入代金：","AX220 ACアダプタ付/LTEネオジムマグネットアンテナ×2本#有償保証(2年)"]
[null,"P00001448","AX220-AC021-NEO2-X03",null,0,"端末一括購入代金：","AX220 ACアダプタ付/LTEネオジムマグネットアンテナ×2本#有償保証(3年)"]
[null,"P00001448","AX220-AC021-NEO2-X05",null,0,"端末一括購入代金：","AX220 ACアダプタ付/LTEネオジムマグネットアンテナ×2本#有償保証(5年)"]
[null,"P00001448","AX220-AC021-MB2-X01",null,0,"端末一括購入代金：","AX220 ACアダプタ付/MBアンテナ×2本#標準保証(1年)"]
[null,"P00001448","AX220-AC021-MB2-X02",null,0,"端末一括購入代金：","AX220 ACアダプタ付/MBアンテナ×2本#有償保証(2年)"]
[null,"P00001448","AX220-AC021-MB2-X03",null,0,"端末一括購入代金：","AX220 ACアダプタ付/MBアンテナ×2本#有償保証(3年)"]
[null,"P00001448","AX220-AC021-MB2-X05",null,0,"端末一括購入代金：","AX220 ACアダプタ付/MBアンテナ×2本#有償保証(5年)"]
[null,"P00001448","AX220-AC021-MIM1-X01",null,0,"端末一括購入代金：","AX220 ACアダプタ付/MIMOアンテナ×1本#標準保証(1年)"]
[null,"P00001448","AX220-AC021-MIM1-X02",null,0,"端末一括購入代金：","AX220 ACアダプタ付/MIMOアンテナ×1本#有償保証(2年)"]
[null,"P00001448","AX220-AC021-MIM1-X03",null,0,"端末一括購入代金：","AX220 ACアダプタ付/MIMOアンテナ×1本#有償保証(3年)"]
[null,"P00001448","AX220-AC021-MIM1-X05",null,0,"端末一括購入代金：","AX220 ACアダプタ付/MIMOアンテナ×1本#有償保証(5年)"]
[null,"P00001448","AX110-AC000-ANT0-X01",null,0,"端末一括購入代金：","AX110#標準保証(1年)"]
[null,"P00001448","AX110-AC000-ANT0-X02",null,0,"端末一括購入代金：","AX110#有償保証(2年)"]
[null,"P00001448","AX110-AC000-ANT0-X03",null,0,"端末一括購入代金：","AX110#有償保証(3年)"]
[null,"P00001448","AX110-AC000-ANT0-X05",null,0,"端末一括購入代金：","AX110#有償保証(5年)"]
[null,"P00001448","AX110-AC021-ANT0-X01",null,0,"端末一括購入代金：","AX110 ACアダプタ付#標準保証(1年)"]
[null,"P00001448","AX110-AC021-ANT0-X02",null,0,"端末一括購入代金：","AX110 ACアダプタ付#有償保証(2年)"]
[null,"P00001448","AX110-AC021-ANT0-X03",null,0,"端末一括購入代金：","AX110 ACアダプタ付#有償保証(3年)"]
[null,"P00001448","AX110-AC021-ANT0-X05",null,0,"端末一括購入代金：","AX110 ACアダプタ付#有償保証(5年)"]
[null,"P00001448","AX110-AC000-RAD1-X01",null,0,"端末一括購入代金：","AX110/RADAアンテナ×1本#標準保証(1年)"]
[null,"P00001448","AX110-AC000-RAD1-X02",null,0,"端末一括購入代金：","AX110/RADAアンテナ×1本#有償保証(2年)"]
[null,"P00001448","AX110-AC000-RAD1-X03",null,0,"端末一括購入代金：","AX110/RADAアンテナ×1本#有償保証(3年)"]
[null,"P00001448","AX110-AC000-RAD1-X05",null,0,"端末一括購入代金：","AX110/RADAアンテナ×1本#有償保証(5年)"]
[null,"P00001448","AX110-AC000-MAG1-X01",null,0,"端末一括購入代金：","AX110/マグネットアンテナ×1本#標準保証(1年)"]
[null,"P00001448","AX110-AC000-MAG1-X02",null,0,"端末一括購入代金：","AX110/マグネットアンテナ×1本#有償保証(2年)"]
[null,"P00001448","AX110-AC000-MAG1-X03",null,0,"端末一括購入代金：","AX110/マグネットアンテナ×1本#有償保証(3年)"]
[null,"P00001448","AX110-AC000-MAG1-X05",null,0,"端末一括購入代金：","AX110/マグネットアンテナ×1本#有償保証(5年)"]
[null,"P00001448","AX110-AC021-RAD1-X01",null,0,"端末一括購入代金：","AX110 ACアダプタ付/RADAアンテナ×1本#標準保証(1年)"]
[null,"P00001448","AX110-AC021-RAD1-X02",null,0,"端末一括購入代金：","AX110 ACアダプタ付/RADAアンテナ×1本#有償保証(2年)"]
[null,"P00001448","AX110-AC021-RAD1-X03",null,0,"端末一括購入代金：","AX110 ACアダプタ付/RADAアンテナ×1本#有償保証(3年)"]
[null,"P00001448","AX110-AC021-RAD1-X05",null,0,"端末一括購入代金：","AX110 ACアダプタ付/RADAアンテナ×1本#有償保証(5年)"]
[null,"P00001448","AX110-AC021-MAG1-X01",null,0,"端末一括購入代金：","AX110 ACアダプタ付/マグネットアンテナ×1本#標準保証(1年)"]
[null,"P00001448","AX110-AC021-MAG1-X02",null,0,"端末一括購入代金：","AX110 ACアダプタ付/マグネットアンテナ×1本#有償保証(2年)"]
[null,"P00001448","AX110-AC021-MAG1-X03",null,0,"端末一括購入代金：","AX110 ACアダプタ付/マグネットアンテナ×1本#有償保証(3年)"]
[null,"P00001448","AX110-AC021-MAG1-X05",null,0,"端末一括購入代金：","AX110 ACアダプタ付/マグネットアンテナ×1本#有償保証(5年)"]
[null,"P00001448","RX220-AC000-ANT0-X01",null,0,"端末一括購入代金：","RX220#標準保証(1年)"]
[null,"P00001448","RX220-AC000-ANT0-X02",null,0,"端末一括購入代金：","RX220#有償保証(2年)"]
[null,"P00001448","RX220-AC000-ANT0-X03",null,0,"端末一括購入代金：","RX220#有償保証(3年)"]
[null,"P00001448","RX220-AC000-ANT0-X05",null,0,"端末一括購入代金：","RX220#有償保証(5年)"]
[null,"P00001448","RX220-AC020-ANT0-X01",null,0,"端末一括購入代金：","RX220 ACアダプタ付#標準保証(1年)"]
[null,"P00001448","RX220-AC020-ANT0-X02",null,0,"端末一括購入代金：","RX220 ACアダプタ付#有償保証(2年)"]
[null,"P00001448","RX220-AC020-ANT0-X03",null,0,"端末一括購入代金：","RX220 ACアダプタ付#有償保証(3年)"]
[null,"P00001448","RX220-AC020-ANT0-X05",null,0,"端末一括購入代金：","RX220 ACアダプタ付#有償保証(5年)"]
[null,"P00001448","RX220-AC000-ROD2-X01",null,0,"端末一括購入代金：","RX220/LTEロッドアンテナ×2本#標準保証(1年)"]
[null,"P00001448","RX220-AC000-ROD2-X02",null,0,"端末一括購入代金：","RX220/LTEロッドアンテナ×2本#有償保証(2年)"]
[null,"P00001448","RX220-AC000-ROD2-X03",null,0,"端末一括購入代金：","RX220/LTEロッドアンテナ×2本#有償保証(3年)"]
[null,"P00001448","RX220-AC000-ROD2-X05",null,0,"端末一括購入代金：","RX220/LTEロッドアンテナ×2本#有償保証(5年)"]
[null,"P00001448","RX220-AC000-NEO2-X01",null,0,"端末一括購入代金：","RX220/LTEネオジムマグネットアンテナ×2本#標準保証(1年)"]
[null,"P00001448","RX220-AC000-NEO2-X02",null,0,"端末一括購入代金：","RX220/LTEネオジムマグネットアンテナ×2本#有償保証(2年)"]
[null,"P00001448","RX220-AC000-NEO2-X03",null,0,"端末一括購入代金：","RX220/LTEネオジムマグネットアンテナ×2本#有償保証(3年)"]
[null,"P00001448","RX220-AC000-NEO2-X05",null,0,"端末一括購入代金：","RX220/LTEネオジムマグネットアンテナ×2本#有償保証(5年)"]
[null,"P00001448","RX220-AC000-MB2-X01",null,0,"端末一括購入代金：","RX220/MBアンテナ×2本#標準保証(1年)"]
[null,"P00001448","RX220-AC000-MB2-X02",null,0,"端末一括購入代金：","RX220/MBアンテナ×2本#有償保証(2年)"]
[null,"P00001448","RX220-AC000-MB2-X03",null,0,"端末一括購入代金：","RX220/MBアンテナ×2本#有償保証(3年)"]
[null,"P00001448","RX220-AC000-MB2-X05",null,0,"端末一括購入代金：","RX220/MBアンテナ×2本#有償保証(5年)"]
[null,"P00001448","RX220-AC000-MIM1-X01",null,0,"端末一括購入代金：","RX220/MIMOアンテナ×1本#標準保証(1年)"]
[null,"P00001448","RX220-AC000-MIM1-X02",null,0,"端末一括購入代金：","RX220/MIMOアンテナ×1本#有償保証(2年)"]
[null,"P00001448","RX220-AC000-MIM1-X03",null,0,"端末一括購入代金：","RX220/MIMOアンテナ×1本#有償保証(3年)"]
[null,"P00001448","RX220-AC000-MIM1-X05",null,0,"端末一括購入代金：","RX220/MIMOアンテナ×1本#有償保証(5年)"]
[null,"P00001448","RX220-AC020-ROD2-X01",null,0,"端末一括購入代金：","RX220 ACアダプタ付/LTEロッドアンテナ×2本#標準保証(1年)"]
[null,"P00001448","RX220-AC020-ROD2-X02",null,0,"端末一括購入代金：","RX220 ACアダプタ付/LTEロッドアンテナ×2本#有償保証(2年)"]
[null,"P00001448","RX220-AC020-ROD2-X03",null,0,"端末一括購入代金：","RX220 ACアダプタ付/LTEロッドアンテナ×2本#有償保証(3年)"]
[null,"P00001448","RX220-AC020-ROD2-X05",null,0,"端末一括購入代金：","RX220 ACアダプタ付/LTEロッドアンテナ×2本#有償保証(5年)"]
[null,"P00001448","RX220-AC020-NEO2-X01",null,0,"端末一括購入代金：","RX220 ACアダプタ付/LTEネオジムマグネットアンテナ×2本#標準保証(1年)"]
[null,"P00001448","RX220-AC020-NEO2-X02",null,0,"端末一括購入代金：","RX220 ACアダプタ付/LTEネオジムマグネットアンテナ×2本#有償保証(2年)"]
[null,"P00001448","RX220-AC020-NEO2-X03",null,0,"端末一括購入代金：","RX220 ACアダプタ付/LTEネオジムマグネットアンテナ×2本#有償保証(3年)"]
[null,"P00001448","RX220-AC020-NEO2-X05",null,0,"端末一括購入代金：","RX220 ACアダプタ付/LTEネオジムマグネットアンテナ×2本#有償保証(5年)"]
[null,"P00001448","RX220-AC020-MB2-X01",null,0,"端末一括購入代金：","RX220 ACアダプタ付/MBアンテナ×2本#標準保証(1年)"]
[null,"P00001448","RX220-AC020-MB2-X02",null,0,"端末一括購入代金：","RX220 ACアダプタ付/MBアンテナ×2本#有償保証(2年)"]
[null,"P00001448","RX220-AC020-MB2-X03",null,0,"端末一括購入代金：","RX220 ACアダプタ付/MBアンテナ×2本#有償保証(3年)"]
[null,"P00001448","RX220-AC020-MB2-X05",null,0,"端末一括購入代金：","RX220 ACアダプタ付/MBアンテナ×2本#有償保証(5年)"]
[null,"P00001448","RX220-AC020-MIM1-X01",null,0,"端末一括購入代金：","RX220 ACアダプタ付/MIMOアンテナ×1本#標準保証(1年)"]
[null,"P00001448","RX220-AC020-MIM1-X02",null,0,"端末一括購入代金：","RX220 ACアダプタ付/MIMOアンテナ×1本#有償保証(2年)"]
[null,"P00001448","RX220-AC020-MIM1-X03",null,0,"端末一括購入代金：","RX220 ACアダプタ付/MIMOアンテナ×1本#有償保証(3年)"]
[null,"P00001448","RX220-AC020-MIM1-X05",null,0,"端末一括購入代金：","RX220 ACアダプタ付/MIMOアンテナ×1本#有償保証(5年)"]
[null,"P00001448","A200-AC1AN0-X03",null,0,"端末一括購入代金：","MB-A200 ACアダプタ付#標準保証(3年)"]
[null,"P00001448","A200-AC1AN0-X05",null,0,"端末一括購入代金：","MB-A200 ACアダプタ付#有償保証(5年)"]
[null,"P00001448","A200-AC1AN0-Y03",null,0,"端末一括購入代金：","MB-A200 ACアダプタ付#有償保証/先出しセンドバック(3年)"]
[null,"P00001448","A200-AC1AN0-Y05",null,0,"端末一括購入代金：","MB-A200 ACアダプタ付#有償保証/先出しセンドバック(5年)"]
[null,"P00001448","A200-AC1AN1-X03",null,0,"端末一括購入代金：","MB-A200 ACアダプタ付/外部アンテナ1本#標準保証(3年)"]
[null,"P00001448","A200-AC1AN1-X05",null,0,"端末一括購入代金：","MB-A200 ACアダプタ付/外部アンテナ1本#有償保証(5年)"]
[null,"P00001448","A200-AC1AN1-Y03",null,0,"端末一括購入代金：","MB-A200 ACアダプタ付/外部アンテナ1本#有償保証/先出しセンドバック(3年)"]
[null,"P00001448","A200-AC1AN1-Y05",null,0,"端末一括購入代金：","MB-A200 ACアダプタ付/外部アンテナ1本#有償保証/先出しセンドバック(5年)"]
[null,"P00001448","A200-AC0AN0-X03",null,0,"端末一括購入代金：","MB-A200#標準保証(3年)"]
[null,"P00001448","A200-AC0AN0-X05",null,0,"端末一括購入代金：","MB-A200#有償保証(5年)"]
[null,"P00001448","A200-AC0AN0-Y03",null,0,"端末一括購入代金：","MB-A200#有償保証/先出しセンドバック(3年)"]
[null,"P00001448","A200-AC0AN0-Y05",null,0,"端末一括購入代金：","MB-A200#有償保証/先出しセンドバック(5年)"]
[null,"P00001448","IPC16LTE-VSD001064",null,0,"端末一括購入代金：","LTE対応カメラ(IPC-16LTE)/microSDカード(64GB)#オプションなし"]
[null,"P00001448","IPC16LTE-VSD001064-C1601",null,0,"端末一括購入代金：","LTE対応カメラ(IPC-16LTE)/microSDカード(64GB)#カード盗難防止カバー"]
[null,"P00001448","IPC16LTE-VSD001064-JBX1601",null,0,"端末一括購入代金：","LTE対応カメラ(IPC-16LTE)/microSDカード(64GB)#ジャンクションボックス"]
[null,"P00001448","IPC16LTE-VSD001064-C1601-JBX1601",null,0,"端末一括購入代金：","LTE対応カメラ(IPC-16LTE)/microSDカード(64GB)#カード盗難防止カバー+ジャンクションボックス"]
[null,"P00001448","IPC16LTE",null,0,"端末一括購入代金：","LTE対応カメラ(IPC-16LTE)※microSDカードお客様ご用意#オプションなし"]
[null,"P00001448","IPC16LTE-C1601",null,0,"端末一括購入代金：","LTE対応カメラ(IPC-16LTE)※microSDカードお客様ご用意#カード盗難防止カバー "]
[null,"P00001448","IPC16LTE-JBX1601",null,0,"端末一括購入代金：","LTE対応カメラ(IPC-16LTE)※microSDカードお客様ご用意#ジャンクションボックス"]
[null,"P00001448","IPC16LTE-C1601-JBX1601",null,0,"端末一括購入代金：","LTE対応カメラ(IPC-16LTE)※microSDカードお客様ご用意#カード盗難防止カバー+ジャンクションボックス"]
[null,"P00001454",null,null,"0","事務手数料：",null,"※事務手数料の項目を利用するはず"]
[null,"P00001453",null,null,"0","ＳＩＭ発行手数料"]
[null,"P00001463",null,null,"0","配送費用"]
[null,"P00001455",null,null,{"$f":"チップ型SIM料金表!B38","v":20},"上りクーポン（１００ＭＢ）"]
[null,"P00001456",null,null,{"$f":"チップ型SIM料金表!B39","v":60},"上りクーポン（３００ＭＢ）"]
[null,"P00001457",null,null,{"$f":"チップ型SIM料金表!B40","v":90},"上りクーポン（５００ＭＢ）"]
[null,"P00001458",null,null,{"$f":"チップ型SIM料金表!B41","v":180},"上りクーポン（１ＧＢ）"]
[null,"P00001459",null,null,{"$f":"チップ型SIM料金表!C38","v":100},"標準クーポン（１００ＭＢ）"]
[null,"P00001460",null,null,{"$f":"チップ型SIM料金表!C39","v":300},"標準クーポン（３００ＭＢ）"]
[null,"P00001461",null,null,{"$f":"チップ型SIM料金表!C40","v":500},"標準クーポン（５００ＭＢ）"]
[null,"P00001462",null,null,{"$f":"チップ型SIM料金表!C41","v":1000},"標準クーポン（１ＧＢ）"]
[null,"P00001450",null,null,0,"違約金：",null,"何を入力？"]
[null,"P00001470",null,null,{"$f":"チップ型SIM料金表!B10","v":700},"スタンダードタイプ標準プラン月額料金："]
[null,"P00001471",null,null,{"$f":"チップ型SIM料金表!B13","v":720},"スタンダードタイプ　１ＧＢプラン　月額料金"]
[null,"P00001472",null,null,{"$f":"チップ型SIM料金表!B14","v":1980},"スタンダードタイプ　３ＧＢプラン　月額料金"]
[null,"P00001473",null,null,{"$f":"チップ型SIM料金表!B15","v":2980},"スタンダードタイプ　５ＧＢプラン　月額料金"]
[null,"P00001474",null,null,{"$f":"チップ型SIM料金表!B16","v":5480},"スタンダードタイプ　１０ＧＢプラン　月額料金"]
[null,"P00001475",null,null,{"$f":"チップ型SIM料金表!B20","v":420},"スタンダードタイプ　上り１ＧＢプラン　月額料金"]
[null,"P00001476",null,null,{"$f":"チップ型SIM料金表!B21","v":680},"スタンダードタイプ　上り３ＧＢプラン　月額料金"]
[null,"P00001477",null,null,{"$f":"チップ型SIM料金表!B22","v":920},"スタンダードタイプ　上り５ＧＢプラン　月額料金"]
[null,"P00001478",null,null,{"$f":"チップ型SIM料金表!B23","v":1480},"スタンダードタイプ　上り１０ＧＢプラン　月額料金"]
[null,"P00001479",null,null,{"$f":"チップ型SIM料金表!B11","v":280},"スタンダードタイプライトプラン月額料金"]
[null,"P00001914",null,null,"0","マルチキャリアタイプ従量プラン月額料金"]
[null,"P00001483",null,null,0,"ＳＭＳ機能オプション利用料：",null,"3GとLTEで分かれているがどうするか"]
[null,"P00001484",null,null,"0","グローバルＩＰオプション："]
[null,"P00001466",null,null,0,"国内通話料・国内ＳＭＳ利用料（課税）",null,"ドコモからの請求がそのままかと思ってますが、変更させる？"]
[null,"P00001467",null,null,0,"国際通話料・国際ＳＭＳ利用料（非課税）",null,"利用シーンにより単価が異なると思うけど何を入れる？"]
[null,"P00001464",null,null,0,"スタンダードタイプ通信料：",null,"不要であってる？"]
[null,"P00001469",null,null,0,"ＳＩＭカード再発行・形状変更"]
[null,"P00001563",null,null,{"$f":"チップ型SIM料金表!B24","v":1980},"スタンダードタイプ　上り３０ＧＢプラン　月額料金"]
[null,"P00001564",null,null,{"$f":"チップ型SIM料金表!B25","v":2880},"スタンダードタイプ　上り５０ＧＢプラン　月額料金"]
[null,"P00001566",null,null,{"$f":"チップ型SIM料金表!B27","v":9980},"スタンダードタイプ　上り２００ＧＢプラン　月額料金"]
[null,"P00001567",null,null,0,"スタンダードタイプ　バックアッププラン　月額料金",null,"バックアッププランは専用申込書のため0固定"]
[null,"P00001724",null,null,{"$f":"チップ型SIM料金表!B17","v":7980},"スタンダードタイプ ２０ＧＢプラン 月額料金"]
[null,"P00001725",null,null,{"$f":"チップ型SIM料金表!B18","v":9980},"スタンダードタイプ ３０ＧＢプラン 月額料金"]
[null,"P00001726",null,null,{"$f":"チップ型SIM料金表!B19","v":12980},"スタンダードタイプ ５０ＧＢプラン 月額料金"]
[null,"P00001727",null,null,{"$f":"チップ型SIM料金表!B28","v":150},"スタンダードタイプ 休止プラン 月額料金"]
[null,"P00001907",null,null,"0","マルチキャリア国内通信料",null,"MB単価"]
[null,"P00001908",null,null,"0","マルチキャリア海外グループ１通信料",null,"MB単価"]
[null,"P00001909",null,null,"0","マルチキャリア海外グループ２通信料",null,"MB単価"]
[null,"P00001910",null,null,"0","マルチキャリア海外グループ３通信料",null,"MB単価"]
[null,"P00001911",null,null,"0","マルチキャリア海外グループ４通信料",null,"MB単価"]
[null,"P00001912",null,null,"0","マルチキャリア海外グループ５通信料",null,"MB単価"]
[null,"P00001913",null,null,"0","マルチキャリア海外グループ６通信料",null,"MB単価"]
[null,"P00001565",null,null,{"$f":"チップ型SIM料金表!B26","v":5920},"スタンダードタイプ　上り１００ＧＢプラン　月額料金"]
[null,"P00001448","A130-AC1AN0-X03",null,0,"端末一括購入代金：","MB-A130 ACアダプタ付#標準保証(3年)"]
[null,"P00001448","A130-AC1AN0-X05",null,0,"端末一括購入代金：","MB-A130 ACアダプタ付#有償保証(5年)"]
[null,"P00001448","A130-AC1AN0-Y03",null,0,"端末一括購入代金：","MB-A130 ACアダプタ付#有償保証/先出しセンドバック(3年)"]
[null,"P00001448","A130-AC1AN0-Y05",null,0,"端末一括購入代金：","MB-A130 ACアダプタ付#有償保証/先出しセンドバック(5年)"]
[null,"P00001448","A130-AC1AN1-X03",null,0,"端末一括購入代金：","MB-A130 ACアダプタ付/外部アンテナ1本#標準保証(3年)"]
[null,"P00001448","A130-AC1AN1-X05",null,0,"端末一括購入代金：","MB-A130 ACアダプタ付/外部アンテナ1本#有償保証(5年)"]
[null,"P00001448","A130-AC1AN1-Y03",null,0,"端末一括購入代金：","MB-A130 ACアダプタ付/外部アンテナ1本#有償保証/先出しセンドバック(3年)"]
[null,"P00001448","A130-AC1AN1-Y05",null,0,"端末一括購入代金：","MB-A130 ACアダプタ付/外部アンテナ1本#有償保証/先出しセンドバック(5年)"]
[null,"P00001480",null,null,{"$f":"チップ型SIM料金表!B12","v":280},"スタンダードタイプ 従量プラン 月額料金"]
[null,"P00002113",null,null,"0","スタンダードタイプ チップSIM維持料金"]
[null,"P00002115",null,null,"0","マルチキャリアタイプ チップSIM維持料金"]
[null,"P00001447",null,"IPC-16LTE","0","ＷｉＦｉキッティングオプション："]
[null,"P00001447",null,"MB-A100","0","ＷｉＦｉキッティングオプション："]
[null,"P00001447",null,"MB-A110","0","ＷｉＦｉキッティングオプション："]
[null,"P00001447",null,"MB-A130","0","ＷｉＦｉキッティングオプション："]
[null,"P00001447",null,"MB-A200","0","ＷｉＦｉキッティングオプション："]
[null,"P00001447",null,"MR03LN/WiFi(SL)","0","ＷｉＦｉキッティングオプション："]
[null,"P00001447",null,"MR04LN(CDL)/WiFi(SL)","0","ＷｉＦｉキッティングオプション："]
[null,"P00001447",null,"MR04LN/WiFi(SL)","0","ＷｉＦｉキッティングオプション："]
[null,"P00001447",null,"MR05LN(CDL)/WiFi(SL)","0","ＷｉＦｉキッティングオプション："]
[null,"P00001447",null,"MR05LN/WiFi(SL)","0","ＷｉＦｉキッティングオプション："]

{"sheet":"リスト","index":7,"n_rows":7,"n_cols":2,"rows_kept":7,"cut":false,"hidden":true,"merged":[]}
["IPアドレス帯","NAT後アドレス照合"]
["5台(/29)",{"$f":"IF(初期設定・企業識別子追加!AD57=\"\",\"対象外\",IF(\"/\"&初期設定・企業識別子追加!AD57=MID(初期設定・企業識別子追加!K45,FIND(\"/\",初期設定・企業識別子追加!K45),3),\"ok\",\"ng\"))","v":"対象外"}]
["13台(/28)"]
["29台(/27)"]
["61台(/26)"]
["125台(/25)"]
["253台(/24)"]

{"sheet":"ご提供条件説明","index":8,"n_rows":86,"n_cols":15,"rows_kept":86,"cut":false,"hidden":false,"merged":[[2,2,2,14]]}
[]
[]
[null,null,"Master'sONEモバイルスタンダードタイプ\n(旧称：モバイルM2M VPNタイプ) のご提供条件について"]
[]
[]
[null,null,"本書はご提供条件のうち、特に重要な事項、及びご利用上の注意事項をご案内しております。"]
[null,null,"内容をご一読の上、お申し込みください。"]
[null,null,"また、本ご提供条件はお客さまが弊社の提供するカスタマーコンソールからお申込みになる全てのSIM・端末およびオプションサービスに適用されます。"]
[]
[null,null,"＜サービス内容＞"]
[null,null,"マシンによるデータ収集のご利用を前提としたモバイルデータ通信サービスです。"]
[null,null,"「SIM 単体」、もしくは「SIM 挿入済みの通信端末」をNTTPC よりご提供します。"]
[]
[null,null,"●サービスタイプ"]
[null,null,"　(1) スタンダードタイプ"]
[null,null,"　　　接続先ネットワークをMaster's ONE IP-VPN とする閉域型モバイルアクセス。"]
[]
[null,null,"●モバイル回線"]
[null,null,"　(1) 3Gプラン"]
[null,null,"　　　3G規格に準じたSIMと通信端末をご提供し、NTTドコモのFOMA®エリアにてご利用頂けます。"]
[null,null,"　　　FOMA®プラスエリアのご利用可否については、通信端末の仕様に準じます。"]
[null,null,"　(2) LTEプラン"]
[null,null,"　　　LTE／3Gの両規格に準じたSIMと通信端末をご提供し、NTTドコモのXi®／FOMA®両エリアにてご利用頂けます。"]
[null,null,"　　　Xi®⇔FOMA®間の切り替え動作、及びFOMA®プラスエリアのご利用可否については、通信端末の仕様に準じます。"]
[null,null,"　　　尚、LTEプランでご提供するSIMは、3G専用端末ではご使用頂けません。3Gプランをご選択ください。"]
[]
[null,null,"● SIM のご提供について"]
[null,null,"　・SIM ロックなどモバイル端末の仕様によりご使用頂けない場合があります。"]
[null,null,"　・ご利用予定端末に関する国内認証機関の承認情報をご提出頂く場合があります。"]
[]
[null,null,"<端末アドレスについて>"]
[null,null,"予約された端末アドレスが長期間払い出されない場合は、予約済みIPアドレスの数またはIPアドレスそのものを変更する場合があります。"]
[]
[null,null,"＜通信速度について＞"]
[null,null,"通信速度はベストエフォートです。"]
[null,null,"お客様のご利用環境、回線の混雑状況、ご利用時間帯によっては大幅に低下することがあります。"]
[]
[null,null,"＜大量データ送信者に対する利用の制限について＞"]
[null,null,"お客様の通信品質の確保・ネットワーク帯域利用の公平性確保を目的として、"]
[null,null,"当社所定の基準に基づき、連続的かつ大量の通信を行う一部のお客様通信の利用を下記のとおり制限します。"]
[]
[null,null,"<全プラン共通>"]
[null,null,"１．網全体が混雑状態となった際に、サービスご利用の公平性確保や混雑状態の早期解消を目的とした通信速度制限を実施する場合があります。"]
[null,null,"　　　混雑状態が解消されると通信速度制限も解除されます。"]
[null,null,"２．Windows® アップデートのご利用につきましては、ご利用速度を一定値に制限します。"]
[null,null,"３．3Gプランでは無通信状態が20分以上継続すると、網側より自動切断されます。"]
[null,null,"４．長時間通信に対する通信断は実施しておりませんが、今後変更される場合があります。"]
[null,null,"５．ご契約のプラン毎に月間通信制御、３日間通信制御が規定されている場合は、各プランで規定する通信制限によって通信速度が制限されます。"]
[null,null,"　　　制限内容については「Master’sONE利用規約」および「サービス仕様書」をご確認ください。"]
[]
[null,null,"＜最大同時PDP接続認証要求数について＞"]
[null,null,"最大同時50端末/秒 とさせて頂きます。"]
[null,null,"タイマーなどにより複数台の端末から一斉にPDP接続認証を行う場合は、タイマーの設定に配慮を頂けますようお願いします。"]
[]
[null,null,"＜利用期間について＞"]
[null,null,"本サービスの最低利用期間はありません。"]
[null,null,"ただし、最低利用期間及び最低利用期間満了前の契約解除に伴う違約金を個別に定めた場合（見積書等において当社より"]
[null,null,"個別に提示した場合を含みます）にはこれによるものとします。"]
[]
[null,null,"なお、2019年9月30日以前に成立した利用契約については、通信端末またはSIMカードの引渡日より１年間を最低利用期間とします。"]
[null,null,"また、最低利用期間満了前の契約解除については、残余期間に相当する月額料金を一括でお支払い頂きます。"]
[]
[null,null,"＜ご請求について＞"]
[null,null,"月初～月末を料金月として、開通翌月のご利用分よりご請求させて頂きます。"]
[null,null,"基本サービス月額料金については開通月無料、解約月満額請求となります。"]
[]
[null,null,"＜本契約の解除について＞"]
[null,null,"・解除希望日の1ヶ月前までに書面にてご通知ください。"]
[null,null,"・ご利用料金は、契約解除日を含む当月分を満額でご請求させて頂きます。"]
[null,null,"・通信端末及びSIMカードはお客様負担にて当社指定の場所へご返却頂きます。"]
[null,null,"　未返却の場合は違約金をご請求させて頂く場合があります。"]
[]
[null,null,"＜その他＞"]
[null,null,"本書に記載のない事項については、「Master’sONE利用規約」「サービス仕様書」に準じるものとします。"]
[]
[null,null,"＜お問い合わせ先＞"]
[null,null,"NTTPCコミュニケーションズ 総合窓口"]
[null,null,"電話：050-3146-6683"]
[null,null,"受付時間：10:30～12:00、13：00～16：30（土日祝日・年末年始を除く）"]
[null,null,"※ナビダイヤルでおつなぎします"]
[]
[]
[null,null,"この提供条件説明書は、2021年4月1日現在の提供条件を説明したものであり、利用規約の改定等"]
[null,null,"により、提供条件が変更になる場合があります。"]
[]
[null,null,null,null,null,null,null,null,null,null,null,null,null,null,"以上"]

{"sheet":"通信機器売買契約条項","index":9,"n_rows":89,"n_cols":2,"rows_kept":89,"cut":false,"hidden":false,"merged":[[35,18,35,21],[35,22,35,25],[35,12,35,14],[35,15,35,17]]}
[]
[null,"Master'sONE 通信機器売買契約条項"]
[]
[null,"本サービスは、株式会社エヌ・ティ・ティピー・シーコミュニケーションズ（以下、「当社」"]
[null,"といいます。）が当社のMaster’sONE 利用規約（以下、「利用規約」といいます。）に規"]
[null,"定しているMaster'sONEモバイルスタンダードタイプ(旧称：モバイルM2M VPNタイプ)"]
[null,"（以下「対象サービス」といいます。）の契約者に対し、対象サービスで利用できる通信機器"]
[null,"（以下、「対象機器」といいます。）を販売します。"]
[]
[null,"第 1  条 （対象機器の購入にあたって）"]
[null,"対象サービスのお申込をされる方で、対象機器の購入を希望される方（以下、「利用者」と"]
[null,"いいます。）は、本条項を必ずお読みのうえ、対象機器の購入をお申込みいただきます。"]
[]
[null,"第 2  条 （対象機器の購入契約の成立）"]
[null,"1. 利用者は、対象機器の購入を希望する場合、当社指定の方法に従って 対象機器の購入申"]
[null,"込を行うものとします。"]
[null,"2. 利用者と当社との間の 対象機器に関する売買契約（以下「売買契約」という）は、前項"]
[null,"に基づく購入申込を当社が受け付け、これを承諾した時点で成立するものとします。かか"]
[null,"る承諾は、当社所定の方法で利用者へ通知することにより行われます。"]
[null,"3. 対象機器について当社が購入数量等を制限している場合、利用者は、その数量の範囲内"]
[null,"で購入申込を行うことができるものとします。"]
[]
[null,"第 3  条 （申込の拒絶）"]
[null,"1. 当社は、利用者が次の各号のいずれかに該当する場合、対象機器の購入申込を承諾しな"]
[null,"い場合があります。"]
[null,"(1) 申込情報に虚偽の情報があった場合"]
[null,"(2) 料金の滞納等がある場合"]
[null,"(3) 日本国外からの申込又は配送先が日本国外の場合"]
[null,"(4) 当社が購入数量等を制限している場合にその制限を超えた場合"]
[null,"(5)その他当社が申込を承諾することにつき不適当と判断した場合"]
[]
[null,"第 4  条 （代金及び支払方法）"]
[null,"1. 対象機器の販売代金（以下「端末代金」という）、その他付帯費用は別途当社が提示する"]
[null,"見積書によるものとします。"]
[null,"2. 利用者は、利用規約にて定める支払条件に従い、端末代金、その他付帯費用を支払うも"]
[null,"のとします。"]
[]
[null,"第 5  条 （配送)"]
[null,"1. 当社は、対象機器を当社の指定する配送業者により配送するものとします。"]
[null,"2. 当社は、売買契約締結後、利用者が当社へ通知した住所へ 対象機器を配送するものとし"]
[null,"ます。なお、対象機器の発送の時期については、利用者の対象サービス利用開始日が確定"]
[null,"した後となります。また、かかる配送の完了をもって、当社の売り主としての引き渡し義"]
[null,"務が履行されたものとします。"]
[null,"3. 対象機器の所有権は、利用者が当社へ端末代金の支払を完了した時点で、利用者へ移転"]
[null,"するものとします。"]
[]
[null,"第 6  条 （初期不良及び返品）"]
[null,"1. 利用者の購入した対象機器について、配送当初から正常に動作しない状態である場合に"]
[null,"は、利用者は当社に対し 対象機器配送完了日から 7 日以内に通知するものとします。こ"]
[null,"の場合、当社は、初期不良として同一機種の良品に交換するものとします。なお、この交"]
[null,"換は初期不良の対象機器が当社に返却され次第、行われるものとします。"]
[null,"2. 前項の初期不良が商品手配違い、設定誤り等当社の責めに帰すべき事由による場合には、"]
[null,"Master’sONEサービスの停止とみなし、利用規約に基づき損害を賠償するものとします。"]
[]
[null,"3. 利用者は、本条第 1 項の通知期限経過後その他本規約に定める場合以外の対象機器の保"]
[null,"証については、対象機器の製造事業者（以下「機器製造事業者」といいます。）の定める保"]
[null,"証規定に従うものとします。なお、機器製造事業者の保証規定に基づく当該対象機器の保"]
[null,"証について、当社は一切責任を負いません。"]
[]
[null,"4. 対象機器について、利用者の責めに帰すべき事由に基づく場合又は以下の各号に基づく"]
[null,"場合、本条第 1 項に定める初期不良には該当しないものとします。"]
[null,"(1) 火災、地震、水害、落雷、ガス害、塩害、その他の天災地変、公害、又は異常電圧等の"]
[null,"不慮の事故による場合"]
[null,"(2) 接続時の不備に起因する場合、又は接続している他の機器に起因する場合"]
[null,"(3) 取扱説明書又は製品仕様書の記載事項に反する使用及び保管による場合"]
[null,"(4) 利用者が改造、調整、部品交換等を行った場合"]
[null,"(5) その他、対象機器引き渡し後の輸送、移動時の落下・衝撃など不適当な取扱いによる場"]
[null,"合"]
[]
[null,"第 7  条 （契約解除）"]
[null,"1. 当社は、以下の各号のいずれかに該当する場合、利用者との売買契約を解除することが"]
[null,"できるものとします。この場合において、利用者に帰責事由がある場合、当社は利用者に"]
[null,"対して当社が被った損害の賠償を求めることができるものとします。"]
[null,"(1) 利用者が本規約等に違反した場合"]
[null,"(2) 当社に通知した住所に 対象機器を配送したにもかかわらず、利用者の不在等により 対"]
[null,"象機器の引き渡しができず、かつ 対象機器の発送のときから一定期間が経過してもなお当"]
[null,"該利用者から何らの連絡も無い場合"]
[null,"2. 前項の解除事由に該当する場合において、利用者に 対象機器の引き渡しが完了している"]
[null,"とき、当社は、当該 対象機器の返還を利用者に要求することができるものとします。利用"]
[null,"者は、当社が返還を要求した場合、利用者の費用負担においてかかる対象機器を当社所定"]
[null,"の方法により直ちに返還しなければならないものとします。"]
[]
[null,"第 8  条 （免責）"]
[null,"1. 当社は、対象機器の商品性又は利用者の使用目的への適合性等に関していかなる保証も"]
[null,"行わないものとします。"]
[null,"2. 当社は、利用者による 対象機器の使用その他本サービスによる売買契約に関して利用者"]
[null,"に生じた特別損害、拡大損害に関しては責任を負いません。また、当社が利用者による対"]
[null,"象機器の使用その他本サービスによる売買契約に関して責任を負う範囲は、いかなる場合"]
[null,"においても利用者の購入した 対象機器の端末代金相当額をその上限とします。"]

{"sheet":"Validation","index":10,"n_rows":57,"n_cols":6,"rows_kept":57,"cut":false,"hidden":true,"merged":[]}
["〇バリデーション"]
["大項番","入力項目","小項番","バリデーション内容","警告表示","備考"]
[1,"お申込日",1,"未記入がある","記入してください"]
[null,null,2,"半角数字以外がある","西暦は4桁で記入してください"]
[null,null,3,"西暦が4桁でない","半角数字で記入してください"]
[null,null,4,"正しい日付ではない","正しい日付を記入してください"]
[2,"システム番号",1,"未記入／未選択がある","記入してください"]
[null,null,2,"半角数字1文字以外がある","半角数字１桁ずつ記入してください"]
[3,"申込区分",1,"未選択または複数選択がある","どちらか１つを選択してください"]
[4,"IDタイプ",1,"未選択または複数選択がある","どちらか１つを選択してください"]
[5,"会社名",1,"未記入がある","記入してください"]
[null,null,2,"全角1～40文字以内でない","全角40文字以内で記入してください"]
[6,"担当者名",1,"未記入がある","記入してください"]
[null,null,2,"全角1～50文字以内でない","全角50文字以内で記入してください"]
[7,"電話番号",1,"未記入がある","記入してください"]
[null,null,2,"半角以外がある","半角で記入してください"]
[null,null,3,"電話番号形式でない","電話番号の形式で記入してください","0X-X-Xは12桁か13桁、0XXXは10桁か11桁"]
[8,"メールアドレス",1,"未記入がある","記入してください"]
[null,null,2,"半角以外がある","半角で記入してください"]
[null,null,3,"メールアドレス形式でない","メールアドレスの形式で記入してください","X@X.X"]
[null,null,4,"半角128文字以内でない","メールアドレスの形式で記入してください"]
[9,"システム名",1,"未記入がある","記入してください"]
[null,null,2,"全角1～32文字以内でない","全角50文字以内で記入してください"]
[10,"企業識別子",1,"未記入がある","記入してください"]
[null,null,2,"半角2～13文字以内でない","企業識別子の形式で記入してください"]
[null,null,3,"文字種が「a-zA-Z0-9-_」以外がある","企業識別子の形式で記入してください"]
[null,null,4,"文字種が「0-9-_」のみ","企業識別子の形式で記入してください"]
[11,"設定完了希望日",1,"未記入がある","記入してください"]
[null,null,2,"半角数字以外がある","西暦は4桁で記入してください"]
[null,null,3,"西暦が4桁でない","半角数字で記入してください"]
[null,null,4,"正しい日付ではない","正しい日付を記入してください"]
[12,"設定完了通知先",1,"未選択または複数選択がある","どちらか１つを選択してください"]
[null,null,2,"「通知する（その他）」でメールアドレスが未記入","記入してください"]
[null,null,3,"「通知する（その他）」でメールアドレス形式でない","メールアドレスの形式で記入してください","X@X.X"]
[null,null,4,"「通知する（その他）」でメールアドレスが半角128文字以内でない","メールアドレスの形式で記入してください"]
[13,"通信規格",1,"未選択または複数選択がある","どちらか１つを選択してください"]
[14,"端末IPアドレス帯",1,"未選択または複数選択がある","どちらか１つを選択してください"]
[15,"ご利用端末数",1,"未選択","記入してください"]
[16,"折り返し通信禁止",1,"未選択または複数選択がある","どちらか１つを選択してください"]
[17,"NAT機能",1,"未選択または複数選択がある","どちらか１つを選択してください"]
[null,null,2,"「利用する」でNAT後アドレス、NAT後マスク、試験用アドレスが未記入","記入してください"]
[null,null,3,"「利用する」でNAT後アドレス、試験用アドレスがIPv4アドレス形式でない","IPアドレスの形式で記入してください"]
[null,null,4,"「利用する」でNAT後マスクが24～29でない","マスクの形式で記入してください"]
[null,null,5,"「利用する」でNAT後マスクがご利用端末数と同じではない","NAT後アドレス帯と端末台数の数は同じにしてください"]
[null,null,6,"「利用する」でNAT後アドレスがネットワークアドレスではない","IPアドレス帯はネットワークアドレスの形式で記入してください"]
[null,null,7,"「利用する」で試験用アドレスがNAT後アドレスレンジ内ではない","試験用アドレスはX.X.X.Xを記入してください","というか末尾の1つ手前じゃないとダメ"]
[18,"DNSアドレス付与",1,"未選択または複数選択がある","どちらか１つを選択してください"]
[null,null,2,"「利用する」でプライマリ、セカンダリが未記入","記入してください"]
[null,null,3,"「利用する」でプライマリ、セカンダリがIPv4アドレス形式ではない","IPアドレスの形式で記入してください"]
[19,"カスタマーコンソール利用管理者",1,"未記入がある","記入してください","新規の場合"]
[null,null,2,"IDが8文字以上、100文字以内ではない","IDの形式で記入してください"]
[null,null,3,"IDがメールアドレス形式（a@a.a）ではない","IDの形式で記入してください"]
[null,null,4,"IDの文字種が「a-zA-Z0-9-_.」 or 「@」ではない","IDの形式で記入してください"]
[null,null,5,"パスワードが8文字以上、50文字以内ではない","パスワードの形式で記入してください"]
[null,null,6,"パスワードの文字種が「a-zA-Z0-9!#$()-./:=@[]^_`{}~」ではない","パスワードの形式で記入してください"]
[20,"見積番号/契約番号",1,"未記入がある","注意書きを赤字にする"]
[null,null,2,"パスワードの文字種が「a-zA-Z0-9@.-_#:」ではない","注意書きを赤字、セルを赤にする"]